Invoice ID,Supplier Name,Paid Date,Subjective Code,Subjective Name,Service Area,Cost Centre Name,Invoiced
2204697,24/7 Minibuses,14/07/2011,34402,Clients  Taxi Fares,Environmental Services,Social Needs Transport,"1,377.00"
2204760,3D Private Hire#Cars,14/07/2011,34402,Clients  Taxi Fares,Environmental Services,Social Needs Transport,"5,545.62"
2205828,A B Health Ltd,14/07/2011,53100,Agency Staff  Fulltime,Chief Executives Department,Personnel Svs Occ Health Unit,"1,195.00"
2205827,A B Health Ltd,14/07/2011,53100,Agency Staff  Fulltime,Chief Executives Department,Personnel Svs Occ Health Unit,"1,615.00"
2213318,A B Health Ltd,28/07/2011,53100,Agency Staff  Fulltime,Chief Executives Department,Personnel Svs Occ Health Unit,795.00
2209310,A E Yates Ltd,21/07/2011,Z1051,Work in Progress Additions,Highways,Stores,"24,131.17"
2204778,AAB Taxi Services,14/07/2011,34402,Clients  Taxi Fares,Environmental Services,Social Needs Transport,"1,436.25"
2204797,ACE Minibuses Ltd,14/07/2011,34402,Clients  Taxi Fares,Environmental Services,Social Needs Transport,"4,054.50"
2212244,AGR Care Services,25/07/2011,52000,Vol Assoc Grants  General,Children's Services,Res Serv Agency Placements,"11,160.00"
2204918,AMA Cabs,14/07/2011,34402,Clients  Taxi Fares,Environmental Services,Social Needs Transport,769.50
2197175,Abafields Residential Home,05/07/2011,54301,Residential Provision,Adult Services,OA  External Provision Residential,"28,078.32"
2197175,Abafields Residential Home,05/07/2011,54301,Residential Provision,Adult Services,MH Residential External Provision,"1,493.52"
2204764,Abbey Private Hire,14/07/2011,34402,Clients  Taxi Fares,Environmental Services,Social Needs Transport,"1,782.00"
2197212,Abbeywood Tottington Ltd,05/07/2011,54301,Residential Provision,Adult Services,OA  External Provision Residential,"1,543.56"
2198090,Access Doors Systems Ltd,07/07/2011,20100,Day To Day Maintenance,Adult Services,Prop. Servs. Jubilee Pool,510.00
2209276,Access to Care Ltd,21/07/2011,52000,Vol Assoc Grants  General,Children's Services,Res Serv Agency Placements,850.00
2209274,Access to Care Ltd,21/07/2011,52000,Vol Assoc Grants  General,Children's Services,Res Serv Agency Placements,850.00
2209301,Access to Care Ltd,21/07/2011,52000,Vol Assoc Grants  General,Children's Services,Res Serv Agency Placements,850.00
2209305,Access to Care Ltd,21/07/2011,52000,Vol Assoc Grants  General,Children's Services,Res Serv Agency Placements,850.00
2201260,Access to Care Ltd,11/07/2011,52000,Vol Assoc Grants  General,Children's Services,Res Serv Agency Placements,850.00
2201261,Access to Care Ltd,11/07/2011,52000,Vol Assoc Grants  General,Children's Services,Res Serv Agency Placements,850.00
2201262,Access to Care Ltd,11/07/2011,52000,Vol Assoc Grants  General,Children's Services,Res Serv Agency Placements,850.00
2201263,Access to Care Ltd,11/07/2011,52000,Vol Assoc Grants  General,Children's Services,Res Serv Agency Placements,850.00
2201284,Access to Care Ltd,11/07/2011,52000,Vol Assoc Grants  General,Children's Services,Res Serv Agency Placements,850.00
2214111,Access to Care Ltd,28/07/2011,52000,Vol Assoc Grants  General,Children's Services,Res Serv Agency Placements,850.00
2214112,Access to Care Ltd,28/07/2011,52000,Vol Assoc Grants  General,Children's Services,Res Serv Agency Placements,850.00
2214113,Access to Care Ltd,28/07/2011,52000,Vol Assoc Grants  General,Children's Services,Res Serv Agency Placements,850.00
2214114,Access to Care Ltd,28/07/2011,52000,Vol Assoc Grants  General,Children's Services,Res Serv Agency Placements,850.00
2214115,Access to Care Ltd,28/07/2011,52000,Vol Assoc Grants  General,Children's Services,Res Serv Agency Placements,850.00
2214116,Access to Care Ltd,28/07/2011,52000,Vol Assoc Grants  General,Children's Services,Res Serv Agency Placements,605.00
2209296,Access to Care Ltd,21/07/2011,52000,Vol Assoc Grants  General,Children's Services,Res Serv Agency Placements,850.00
2197298,Across The Bay,05/07/2011,54301,Residential Provision,Adult Services,OA  External Provision Residential,"1,626.00"
2205616,Action For Children,25/07/2011,52000,Vol Assoc Grants  General,Children's Services,Res Serv Agency Placements,"1,021.53"
2202284,Action For Children,11/07/2011,52200,Contracted Services,Adult Services,Supporting People  Capital Financing,"26,510.40"
2202285,Addiction Dependency Solutions#ADS,11/07/2011,52200,Contracted Services,Adult Services,Supporting People  Capital Financing,"11,276.72"
2205723,Addiction Dependency Solutions#ADS,25/07/2011,54301,Residential Provision,Adult Services,Alcohol External Provision,"2,603.00"
2205720,Addiction Dependency Solutions#ADS,25/07/2011,54301,Residential Provision,Adult Services,Alcohol External Provision,"2,943.27"
2204277,Age Concern,14/07/2011,52000,Vol Assoc Grants  General,Adult Services,OA  Day Care Provision  external,"24,854.11"
2198216,Age Concern,07/07/2011,52000,Vol Assoc Grants  General,Adult Services,OA  Day Care Provision  external,"1,994.10"
2201099,Aidapt Bathrooms Ltd,14/07/2011,44051,Clients Aids & Adaptations,Adult Services,AD ICES,"3,032.42"
2201095,Aidapt Bathrooms Ltd,14/07/2011,44051,Clients Aids & Adaptations,Adult Services,AD ICES,"1,064.25"
2201083,Aidapt Bathrooms Ltd,14/07/2011,44051,Clients Aids & Adaptations,Adult Services,AD ICES,"2,429.46"
2202220,Aidapt Bathrooms Ltd,21/07/2011,44051,Clients Aids & Adaptations,Adult Services,AD ICES,"1,023.00"
2206530,Aidapt Bathrooms Ltd,21/07/2011,44051,Clients Aids & Adaptations,Adult Services,AD ICES,"1,442.87"
2197223,Ainsworth Nursing Home,05/07/2011,54301,Residential Provision,Adult Services,PD Purchaser Residential Care,"1,543.56"
2197223,Ainsworth Nursing Home,05/07/2011,54301,Residential Provision,Adult Services,MH Residential External Provision,"6,174.24"
2197223,Ainsworth Nursing Home,05/07/2011,54302,Nursing Provision,Adult Services,OA  External Provision Residential,"3,087.12"
2197223,Ainsworth Nursing Home,05/07/2011,54302,Nursing Provision,Adult Services,MH Residential External Provision,"4,630.68"
2204802,Alan Bick#Alans Cab,14/07/2011,34402,Clients  Taxi Fares,Environmental Services,Social Needs Transport,828.00
2209214,REDACTED - PERSONAL DATA,21/07/2011,48502,Legal Fees,Development & Regen,Development Management,750.00
2214397,REDACTED - PERSONAL DATA,28/07/2011,Z1051,Work in Progress Additions,Highways,Stores,750.00
2204803,Alims Minibuses/ Mr M Alim Khan,14/07/2011,34402,Clients  Taxi Fares,Environmental Services,Social Needs Transport,"1,458.00"
2203036,Allpay.net Ltd,11/07/2011,48509,Other Fees,Finance Department,CSD Cashiers,514.32
2203034,Allpay.net Ltd,11/07/2011,48509,Other Fees,Finance Department,CSD Cashiers,"6,286.37"
2203033,Allpay.net Ltd,11/07/2011,48509,Other Fees,Finance Department,CSD Cashiers,"2,182.20"
2197987,Almond Villas Rehabilitation Centre,21/07/2011,52200,Contracted Services,Adult Services,MH Residential External Provision,"1,433.55"
2200752,Alpha Graphics,14/07/2011,48203,Marketing,Central Services,Marketing  Development,"2,019.00"
2205031,Alsecure Group Ltd,14/07/2011,44401,Other Security Expenses,Housing GRF,Benjamin Court Accommodation,839.16
2202216,Alsecure Group Ltd,14/07/2011,44401,Other Security Expenses,Housing GRF,Benjamin Court Accommodation,839.16
2197288,Altham Care Home,05/07/2011,54301,Residential Provision,Adult Services,OA  External Provision Residential,"1,556.00"
2211276,Anchor Care,25/07/2011,52200,Contracted Services,Adult Services,OA Extra Care Housing External Provision,"157,252.50"
2202286,Anchor Trust#2,11/07/2011,52200,Contracted Services,Adult Services,Supporting People  Capital Financing,"4,027.24"
2203287,Anchor Trust#2,11/07/2011,52200,Contracted Services,Adult Services,OA  Home Care Services external provision,"23,036.49"
2201972,Anchor Trust#2,11/07/2011,52200,Contracted Services,Adult Services,OA  Day Care Provision  external,"3,855.00"
2204843,REDACTED - PERSONAL DATA,14/07/2011,34402,Clients  Taxi Fares,Environmental Services,Social Needs Transport,"1,265.40"
2207536,Anglia DNA Services Limited,18/07/2011,48509,Other Fees,Children's Services,Management Team,503.20
2206953,Animal Wardens,18/07/2011,53000,Private Contracted Services,Environmental Services,Education & Enforcement,570.00
2211232,Apcoa Parking UK Ltd#3,25/07/2011,22002,Management Fee,Environmental Services,Parking Services  Off Street,"12,604.12"
2204213,Apetito Ltd,25/07/2011,41101,Catering ProvisionsFood,Adult Services,OA  Community Meals,"1,434.08"
2204244,Apetito Ltd,21/07/2011,41101,Catering ProvisionsFood,Adult Services,OA  Community Meals,"1,397.10"
2204252,Apetito Ltd,21/07/2011,41101,Catering ProvisionsFood,Adult Services,OA  Community Meals,"1,328.61"
2198210,Apetito Ltd,11/07/2011,41101,Catering ProvisionsFood,Adult Services,OA  Community Meals,"1,399.67"
2198155,Apetito Ltd,07/07/2011,41101,Catering ProvisionsFood,Adult Services,OA  Community Meals,"1,670.31"
2203802,Apetito Ltd,18/07/2011,41101,Catering ProvisionsFood,Adult Services,OA  Community Meals,"1,370.87"
2203853,Apetito Ltd,18/07/2011,41101,Catering ProvisionsFood,Adult Services,OA  Community Meals,"1,393.34"
2205741,Apetito Ltd,28/07/2011,41101,Catering ProvisionsFood,Adult Services,OA  Community Meals,"1,111.80"
2207761,Apetito Ltd,18/07/2011,41101,Catering ProvisionsFood,Adult Services,OA  Community Meals,"1,351.68"
2205693,Apex Digital Graphics Ltd,25/07/2011,40141,Office Equipment Maintenance,Central Services,Printing Services,"1,950.00"
2205692,Apex Digital Graphics Ltd,25/07/2011,40141,Office Equipment Maintenance,Central Services,Printing Services,"1,800.00"
2208612,Apex Digital Graphics Ltd,18/07/2011,43032,Office Stationery,Central Services,Printing Services,"1,741.70"
2200739,Arco Limited,14/07/2011,42000,Clothing,Environmental Services,Greenspace,585.27
2204826,REDACTED - PERSONAL DATA,14/07/2011,34402,Clients  Taxi Fares,Environmental Services,Social Needs Transport,"3,809.25"
2205104,Ariel Tree Care,14/07/2011,52200,Contracted Services,Environmental Services,Greenspace,"3,847.00"
2209245,Arval Ltd,21/07/2011,31301,Vehicle Fuel,Environmental Services,Highway Works  Unallocated Costs,"3,822.85"
2209245,Arval Ltd,21/07/2011,31301,Vehicle Fuel,Environmental Services,Greenspace,"2,969.45"
2209245,Arval Ltd,21/07/2011,31301,Vehicle Fuel,Environmental Services,Streets & Grounds,"7,446.13"
2209245,Arval Ltd,21/07/2011,31301,Vehicle Fuel,Environmental Services,Waste,"26,085.97"
2209245,Arval Ltd,21/07/2011,31301,Vehicle Fuel,Environmental Services,Social Needs Transport,"6,500.05"
2212264,Arval Ltd,25/07/2011,31301,Vehicle Fuel,Environmental Services,Highway Works  Unallocated Costs,"2,949.37"
2212264,Arval Ltd,25/07/2011,31301,Vehicle Fuel,Environmental Services,Greenspace,"2,859.80"
2212264,Arval Ltd,25/07/2011,31301,Vehicle Fuel,Environmental Services,Streets & Grounds,"7,171.88"
2212264,Arval Ltd,25/07/2011,31301,Vehicle Fuel,Environmental Services,Waste,"25,019.43"
2212264,Arval Ltd,25/07/2011,31301,Vehicle Fuel,Environmental Services,Social Needs Transport,"5,329.37"
2205981,Ascriber Ltd,21/07/2011,Z1051,Work in Progress Additions,Adult Services,Adult Services Balance Sheet,"6,840.00"
2214621,Asda Pharmacy,28/07/2011,52200,Contracted Services,Adult Services,Drugs Action Team,906.40
2210256,Ash Hire & Sales Ltd,28/07/2011,Z6008,Expense AP Accrual,Bolton MBC Balance Sheet,Bolton MBC Balance Sheet,720.00
2210258,Ash Hire & Sales Ltd,28/07/2011,Z6008,Expense AP Accrual,Bolton MBC Balance Sheet,Bolton MBC Balance Sheet,580.00
2204737,REDACTED - PERSONAL DATA,14/07/2011,34402,Clients  Taxi Fares,Environmental Services,Social Needs Transport,"1,954.62"
2197251,Ashleigh House Care Home,05/07/2011,54301,Residential Provision,Adult Services,OA  External Provision Residential,"1,356.00"
2197268,Ashwood Rest Home,05/07/2011,54301,Residential Provision,Adult Services,OA  External Provision Residential,"1,624.00"
2211084,Asian Elders Resource Centre,25/07/2011,41101,Catering ProvisionsFood,Adult Services,OA  Community Meals,571.35
2204275,Asian Elders Resource Centre,14/07/2011,52000,Vol Assoc Grants  General,Adult Services,OA  Day Care Provision  external,"21,803.49"
2197287,Asra House,05/07/2011,54301,Residential Provision,Adult Services,OA  External Provision Residential,"1,596.00"
2205074,Associated Cleaning Contractors,14/07/2011,26100,Window Cleaning,Property Services,Town Hall,525.00
2204617,Associated Cleaning Contractors,14/07/2011,26101,Contract Cleaning,Property Services,Horwich Area Office,570.00
2214016,Associated Cleaning Contractors,28/07/2011,52200,Contracted Services,Housing GRF,Access & Advice Housing Options Centre,764.15
2205075,Associated Cleaning Contractors,14/07/2011,20100,Day To Day Maintenance,Children's Services,Management Team,"1,784.00"
2205076,Associated Cleaning Contractors,14/07/2011,20100,Day To Day Maintenance,Children's Services,Management Team,"1,784.00"
2210427,Associated Cleaning Contractors,21/07/2011,20100,Day To Day Maintenance,Children's Services,Management Team,"1,784.00"
2205071,Associated Cleaning Contractors,14/07/2011,26100,Window Cleaning,Children's Services,Management Team,"1,784.00"
2197219,Astley Grange,05/07/2011,54302,Nursing Provision,Adult Services,OA  External Provision Residential,"9,275.69"
2205372,Astun Technology Ltd,14/07/2011,Z1051,Work in Progress Additions,Environmental Services,Environmental Services Balance sheet,"8,911.00"
2205375,Astun Technology Ltd,14/07/2011,Z1051,Work in Progress Additions,Environmental Services,Environmental Services Balance sheet,"5,265.00"
2213081,Atkins Limited,28/07/2011,52200,Contracted Services,Property Services,Operational Facilities Management,"24,793.84"
2204831,Atlantis,14/07/2011,34402,Clients  Taxi Fares,Environmental Services,Social Needs Transport,"2,673.40"
2202210,Automatic Alarms Limited,11/07/2011,40101,Operational Equipment Maint,Housing GRF,Benjamin Court Accommodation,861.67
2210017,Automatic Alarms Limited,21/07/2011,48629,Miscellaneous Expenses,Housing GRF,Access & Advice Caravan Sites,563.60
2203241,Automatic Alarms Limited,11/07/2011,Z1051,Work in Progress Additions,Housing Revenue Account,Capital  HRA,"1,750.00"
2204235,B & M Davies (Plant Hire) Ltd,21/07/2011,33202,Plant Hire,Environmental Services,Bereavement Services,877.50
2208775,B & M Davies (Plant Hire) Ltd,25/07/2011,33202,Plant Hire,Environmental Services,Depots,592.00
2211197,B & M Davies (Plant Hire) Ltd,28/07/2011,33202,Plant Hire,Environmental Services,Bereavement Services,"1,195.00"
2211203,B & M Davies (Plant Hire) Ltd,28/07/2011,33202,Plant Hire,Environmental Services,Bereavement Services,500.00
2198257,B & M Davies (Plant Hire) Ltd,07/07/2011,33202,Plant Hire,Environmental Services,Bereavement Services,662.30
2198260,B & M Davies (Plant Hire) Ltd,07/07/2011,33202,Plant Hire,Environmental Services,Bereavement Services,800.00
2200668,B & M Davies (Plant Hire) Ltd,14/07/2011,33202,Plant Hire,Environmental Services,Bereavement Services,716.25
2200675,B & M Davies (Plant Hire) Ltd,14/07/2011,Z6008,Expense AP Accrual,Bolton MBC Balance Sheet,Bolton MBC Balance Sheet,502.00
2200669,B & M Davies (Plant Hire) Ltd,14/07/2011,33202,Plant Hire,Environmental Services,Greenspace,510.35
2207007,B & M Davies (Plant Hire) Ltd,18/07/2011,33202,Plant Hire,Environmental Services,Greenspace,640.10
2198427,B & M Davies (Plant Hire) Ltd,18/07/2011,Z6008,Expense AP Accrual,Bolton MBC Balance Sheet,Bolton MBC Balance Sheet,592.00
2208789,B & M Davies (Plant Hire) Ltd,25/07/2011,Z6008,Expense AP Accrual,Bolton MBC Balance Sheet,Bolton MBC Balance Sheet,632.00
2208791,B & M Davies (Plant Hire) Ltd,25/07/2011,Z6008,Expense AP Accrual,Bolton MBC Balance Sheet,Bolton MBC Balance Sheet,592.00
2208797,B & M Davies (Plant Hire) Ltd,25/07/2011,Z6008,Expense AP Accrual,Bolton MBC Balance Sheet,Bolton MBC Balance Sheet,592.00
2208800,B & M Davies (Plant Hire) Ltd,25/07/2011,Z6008,Expense AP Accrual,Bolton MBC Balance Sheet,Bolton MBC Balance Sheet,"1,075.00"
2204487,B & M Davies (Plant Hire) Ltd,21/07/2011,Z6008,Expense AP Accrual,Bolton MBC Balance Sheet,Bolton MBC Balance Sheet,665.00
2212378,B & M Davies (Plant Hire) Ltd,25/07/2011,Z6008,Expense AP Accrual,Bolton MBC Balance Sheet,Bolton MBC Balance Sheet,"1,145.34"
2204284,B & M Davies (Plant Hire) Ltd,18/07/2011,Z6008,Expense AP Accrual,Bolton MBC Balance Sheet,Bolton MBC Balance Sheet,856.00
2204286,B & M Davies (Plant Hire) Ltd,18/07/2011,Z6008,Expense AP Accrual,Bolton MBC Balance Sheet,Bolton MBC Balance Sheet,704.00
2202024,B & M Davies (Plant Hire) Ltd,21/07/2011,33202,Plant Hire,Environmental Services,Depots,592.00
2211192,B & M Davies (Plant Hire) Ltd,25/07/2011,33202,Plant Hire,Environmental Services,Bereavement Services,528.05
2208268,B & Q PLC#3,18/07/2011,20100,Day To Day Maintenance,Housing Revenue Account,R & M  Tonge,754.03
2214542,B & Q PLC#3,28/07/2011,20100,Day To Day Maintenance,Housing Revenue Account,R & M  Chorley Old Road,745.42
2214542,B & Q PLC#3,28/07/2011,20100,Day To Day Maintenance,Housing Revenue Account,R & M  Horwich,585.69
2214542,B & Q PLC#3,28/07/2011,20100,Day To Day Maintenance,Housing Revenue Account,R & M  Tonge,540.35
2200710,B A N D#Bolton Association and Network of Drop-Ins (BAND),07/07/2011,52200,Contracted Services,Adult Services,MH Day Care External Provision,"25,730.25"
2198585,B Foley & Son,07/07/2011,Z1051,Work in Progress Additions,Housing GRF,Capital  General Fund,"4,559.00"
2202421,BAM Nuttall Limited,11/07/2011,Z1051,Work in Progress Additions,Highways,Stores,"75,914.60"
2202287,BASE Ltd#2,11/07/2011,52200,Contracted Services,Adult Services,Supporting People  Capital Financing,"8,031.60"
2198241,BMI Gisburne Park Hospital,07/07/2011,52200,Contracted Services,Adult Services,Drugs Action Team,"16,920.00"
2198196,BMI Gisburne Park Hospital,07/07/2011,52200,Contracted Services,Adult Services,Alcohol External Provision,"28,200.00"
2205761,BT plc,14/07/2011,45407,Computer Peripherals,Adult Services,AD  IT,723.06
2197267,Bank House Care Home,05/07/2011,54301,Residential Provision,Adult Services,OA  External Provision Residential,"1,543.56"
2213852,Barton Grange Garden Centre,28/07/2011,40601,General Materials,Environmental Services,Greenspace,537.50
2213848,Barton Grange Garden Centre,28/07/2011,40601,General Materials,Environmental Services,Greenspace,583.33
2197303,Beechfield Lodge#Anchor Trust,05/07/2011,54301,Residential Provision,Adult Services,OA  External Provision Residential,"1,531.44"
2197281,Beechville Care Home,05/07/2011,54301,Residential Provision,Adult Services,OA  External Provision Residential,"4,649.48"
2197282,Beechwood House,05/07/2011,54301,Residential Provision,Adult Services,OA  External Provision Residential,"1,864.80"
2197306,Belong Atherton#EPH,05/07/2011,54301,Residential Provision,Adult Services,OA  External Provision Residential,"1,650.36"
2197301,Belong Wigan#EPH,05/07/2011,54301,Residential Provision,Adult Services,OA  External Provision Residential,"1,519.00"
2212254,Bertram Library Services,25/07/2011,40753,Book Fund Expenditure,Adult Services,Libraries  Resources,"8,266.95"
2202021,Bertram Library Services,18/07/2011,40753,Book Fund Expenditure,Adult Services,Libraries  Resources,"6,083.26"
2207933,Bethell Construction Ltd,18/07/2011,Z6008,Expense AP Accrual,Bolton MBC Balance Sheet,Bolton MBC Balance Sheet,"7,125.72"
2200958,Bethell Construction Ltd,18/07/2011,Z6008,Expense AP Accrual,Bolton MBC Balance Sheet,Bolton MBC Balance Sheet,"7,634.70"
2204455,Bethell Construction Ltd,18/07/2011,Z6008,Expense AP Accrual,Bolton MBC Balance Sheet,Bolton MBC Balance Sheet,"6,107.76"
2213980,Birkdale Design Ltd,28/07/2011,40150,Office Furniture Purchase,Housing GRF,Furnished Tenancies,745.00
2214017,Birkdale Design Ltd,28/07/2011,40150,Office Furniture Purchase,Housing GRF,Furnished Tenancies,826.00
2214068,Birkdale Design Ltd,28/07/2011,40150,Office Furniture Purchase,Housing GRF,Furnished Tenancies,745.00
2214069,Birkdale Design Ltd,28/07/2011,40150,Office Furniture Purchase,Housing GRF,Furnished Tenancies,745.00
2214070,Birkdale Design Ltd,28/07/2011,40150,Office Furniture Purchase,Housing GRF,Furnished Tenancies,745.00
2214076,Birkdale Design Ltd,28/07/2011,40150,Office Furniture Purchase,Housing GRF,Furnished Tenancies,745.00
2212086,Birkdale Design Ltd,25/07/2011,40150,Office Furniture Purchase,Housing GRF,Furnished Tenancies,745.00
2212093,Birkdale Design Ltd,25/07/2011,40150,Office Furniture Purchase,Housing GRF,Furnished Tenancies,745.00
2212098,Birkdale Design Ltd,25/07/2011,40150,Office Furniture Purchase,Housing GRF,Furnished Tenancies,745.00
2212114,Birkdale Design Ltd,25/07/2011,40150,Office Furniture Purchase,Housing GRF,Furnished Tenancies,826.00
2212115,Birkdale Design Ltd,25/07/2011,40150,Office Furniture Purchase,Housing GRF,Furnished Tenancies,745.00
2212118,Birkdale Design Ltd,25/07/2011,40150,Office Furniture Purchase,Housing GRF,Furnished Tenancies,745.00
2212120,Birkdale Design Ltd,25/07/2011,40150,Office Furniture Purchase,Housing GRF,Furnished Tenancies,745.00
2212126,Birkdale Design Ltd,25/07/2011,40150,Office Furniture Purchase,Housing GRF,Furnished Tenancies,745.00
2210394,Birkdale Design Ltd,21/07/2011,40150,Office Furniture Purchase,Housing GRF,Furnished Tenancies,826.00
2210395,Birkdale Design Ltd,21/07/2011,40150,Office Furniture Purchase,Housing GRF,Furnished Tenancies,745.00
2210398,Birkdale Design Ltd,21/07/2011,40150,Office Furniture Purchase,Housing GRF,Furnished Tenancies,937.00
2201042,Birkdale Design Ltd,07/07/2011,40150,Office Furniture Purchase,Housing Revenue Account,Furnished Tenancies,826.00
2201046,Birkdale Design Ltd,07/07/2011,40150,Office Furniture Purchase,Housing Revenue Account,Furnished Tenancies,745.00
2201047,Birkdale Design Ltd,07/07/2011,40150,Office Furniture Purchase,Housing Revenue Account,Furnished Tenancies,745.00
2201048,Birkdale Design Ltd,07/07/2011,40150,Office Furniture Purchase,Housing Revenue Account,Furnished Tenancies,826.00
2201056,Birkdale Design Ltd,07/07/2011,40150,Office Furniture Purchase,Housing Revenue Account,Furnished Tenancies,745.00
2201060,Birkdale Design Ltd,07/07/2011,40150,Office Furniture Purchase,Housing Revenue Account,Furnished Tenancies,745.00
2212067,Birkdale Design Ltd,25/07/2011,40150,Office Furniture Purchase,Housing Revenue Account,Furnished Tenancies,745.00
2210399,Birkdale Design Ltd,21/07/2011,40150,Office Furniture Purchase,Housing Revenue Account,Furnished Tenancies,745.00
2212306,Birkdale Design Ltd,25/07/2011,40150,Office Furniture Purchase,Housing Revenue Account,Furnished Tenancies,826.00
2214108,Birtenshaw Hall (Childrens Charitable Trust),28/07/2011,52000,Vol Assoc Grants  General,Children's Services,Disability Serv Short Breaks,"1,509.28"
2214107,Birtenshaw Hall (Childrens Charitable Trust),28/07/2011,52000,Vol Assoc Grants  General,Children's Services,Disability Serv Short Breaks,"3,468.60"
2212218,Birtenshaw Hall (Childrens Charitable Trust),25/07/2011,52000,Vol Assoc Grants  General,Children's Services,Disability Serv External Provision,"10,101.00"
2197224,Blackrod House,05/07/2011,54301,Residential Provision,Adult Services,OA  External Provision Residential,"23,019.66"
2213105,Blakeley Tonge & Partner Ltd,28/07/2011,Z1051,Work in Progress Additions,Property Services,Property Services Balance Sheet,"19,812.57"
2205905,Bolmoor Industries Ltd,18/07/2011,42001,Uniforms,Environmental Services,Waste,"1,663.75"
2212505,Bolton & District Citizens Advice Bureau LTD,25/07/2011,47103,Miscellaneous Grants,Chief Executives Department,Voluntary Sector Grants,"43,218.00"
2201775,Bolton CVS#Bolton Community & Voluntary Services,11/07/2011,52200,Contracted Services,Adult Services,OA  Carers Grant,"5,462.50"
2209784,Bolton CVS#Bolton Community & Voluntary Services,21/07/2011,47103,Miscellaneous Grants,Chief Executives Department,Voluntary Sector Grants,"80,000.00"
2201777,Bolton CVS#Bolton Community & Voluntary Services,11/07/2011,52200,Contracted Services,Adult Services,OA  Carers Grant,"5,462.50"
2209783,Bolton CVS#Bolton Community & Voluntary Services,21/07/2011,47103,Miscellaneous Grants,Chief Executives Department,Voluntary Sector Grants,"67,500.00"
2214027,Bolton Carpet Warehouse,28/07/2011,40150,Office Furniture Purchase,Housing GRF,Furnished Tenancies,673.79
2214032,Bolton Carpet Warehouse,28/07/2011,40150,Office Furniture Purchase,Housing GRF,Furnished Tenancies,700.74
2203279,Bolton Carpet Warehouse,11/07/2011,40150,Office Furniture Purchase,Housing GRF,Furnished Tenancies,598.28
2203281,Bolton Carpet Warehouse,11/07/2011,40150,Office Furniture Purchase,Housing GRF,Furnished Tenancies,598.28
2201072,Bolton Carpet Warehouse,07/07/2011,40150,Office Furniture Purchase,Housing Revenue Account,Furnished Tenancies,673.79
2210642,Bolton Community Leisure Ltd,26/07/2011,52200,Contracted Services,Development & Regen,The Leisure Trust,"242,798.29"
2208377,Bolton Community Radio CIC#Bolton FM CIC,18/07/2011,47103,Miscellaneous Grants,Chief Executives Department,Voluntary Sector Grants,"7,500.00"
2212602,Bolton Community Transport & Furniture Services#bct & fs,25/07/2011,47103,Miscellaneous Grants,Chief Executives Department,Voluntary Sector Grants,"17,460.75"
2206891,Bolton Fundco 1 Limited,18/07/2011,Z1051,Work in Progress Additions,Development & Regen,Development & Regeneration Capital,"991,695.89"
2213996,Bolton Kidz2gether,28/07/2011,52200,Contracted Services,Children's Services,Admin Commissioning,"13,749.00"
2213953,Bolton Primary Care Trust#12#Bolton PCT,28/07/2011,52200,Contracted Services,Adult Services,LD Purchaser Supported Housing,"203,342.00"
2204841,Bolton Private Hire Ltd,14/07/2011,34402,Clients  Taxi Fares,Environmental Services,Social Needs Transport,"4,097.07"
2212631,Bolton Shopmobility,25/07/2011,47103,Miscellaneous Grants,Chief Executives Department,Voluntary Sector Grants,"6,723.25"
2205721,Bolton Tree & Landscape Services Ltd,14/07/2011,52200,Contracted Services,Environmental Services,Greenspace,"1,600.00"
2200890,Bolton Tree & Landscape Services Ltd,07/07/2011,52200,Contracted Services,Environmental Services,Greenspace,"6,000.00"
2202292,Bolton Young Persons Housing Scheme#BYPHS,11/07/2011,52200,Contracted Services,Adult Services,Supporting People  Capital Financing,"17,307.92"
2214205,Bolton Young Persons Housing Scheme#BYPHS,28/07/2011,52000,Vol Assoc Grants  General,Children's Services,Res Serv Agency Placements,"2,400.00"
2212809,Boots The Chemist,28/07/2011,52200,Contracted Services,Adult Services,Drugs Action Team,799.50
2197279,Bowerswood House Retirement Home Ltd,05/07/2011,54301,Residential Provision,Adult Services,OA  External Provision Residential,"1,440.00"
2204695,Bradshaw Gass & Hope#1,14/07/2011,52200,Contracted Services,Property Services,Projects,"4,224.34"
2204763,Bradshaw Gass & Hope#1,14/07/2011,52200,Contracted Services,Property Services,Projects,"1,423.45"
2210318,Brian McCallister & Sons,21/07/2011,22202,Sewerage & Env'mental Servs,Housing GRF,HMO Licence Fees,520.00
2197305,Brideoake Care Home,05/07/2011,54301,Residential Provision,Adult Services,OA  External Provision Residential,"1,315.60"
2204845,Bridge Private Hire#Mr I Arshad,14/07/2011,34402,Clients  Taxi Fares,Environmental Services,Social Needs Transport,631.00
2204479,British Gas Business,14/07/2011,21100,Electricity  General,Central Corporate,Land & Property,"1,321.59"
2204477,British Gas Business,14/07/2011,21200,Gas  General,Adult Services,Prop. Servs. Winifred Kettle,"1,398.21"
2210591,Bronte Natural Spring Water Ltd#Bronte Water Coolers Limited,28/07/2011,40613,Goods for Resale,Adult Services,Civic Catering Dido,503.00
2197286,Brookfield Residential Care Home Ltd,05/07/2011,54301,Residential Provision,Adult Services,MH Residential External Provision,"3,663.56"
2197245,Brookvale,05/07/2011,54301,Residential Provision,Adult Services,LD Purchaser Residential Care,"7,000.00"
2197242,Brothers Of Charity Services,05/07/2011,54302,Nursing Provision,Adult Services,LD Purchaser Residential Care,"3,617.20"
2197206,Broughton House#EPH,05/07/2011,54301,Residential Provision,Adult Services,OA  External Provision Residential,"1,526.96"
2197207,Browfield Residential Care Home,05/07/2011,54301,Residential Provision,Adult Services,MH Residential External Provision,"4,663.48"
2200690,Buildbase,21/07/2011,40601,General Materials,Environmental Services,Greenspace,518.71
2202167,Building Research Establishment Ltd T/A BRE,11/07/2011,48522,Property Surveys,Housing GRF,Stock Condition Survey,"1,000.00"
2202148,Building Research Establishment Ltd T/A BRE,11/07/2011,48522,Property Surveys,Housing GRF,Stock Condition Survey,"8,250.00"
2213491,Burnt Tree Group,28/07/2011,33201,Transport Hire,Environmental Services,Transport Support Service,"2,150.73"
2211293,Butcher & Barlow#2,26/07/2011,Z1051,Work in Progress Additions,Housing GRF,Capital  General Fund,"61,000.00"
2206913,By The Bridge North West,18/07/2011,52000,Vol Assoc Grants  General,Children's Services,Res Serv Agency Placements,"3,826.33"
2203278,C & D Care Solutions Ltd#2#Barclays Bank PLC,11/07/2011,52200,Contracted Services,Adult Services,OA  Home Care Services external provision,"23,032.63"
2209478,C Horrocks & Sons Ltd,21/07/2011,20300,Heating & Electrical Work,Property Services,Le Mans Crescent  Library,960.00
2210605,C Horrocks & Sons Ltd,21/07/2011,20300,Heating & Electrical Work,Property Services,Albert Halls Complex,685.00
2209496,C M Fair Joinery Ltd,21/07/2011,20100,Day To Day Maintenance,Central Corporate,Land & Property,842.40
2210572,REDACTED - PERSONAL DATA,21/07/2011,48509,Other Fees,Children's Services,Sec Sch Imp  Intensive Supp/Intervention,"1,250.00"
2210572,REDACTED - PERSONAL DATA,21/07/2011,48509,Other Fees,Children's Services,Secondary Commissioning,"2,100.00"
2210649,CB Building And Joinery Ltd,25/07/2011,44051,Clients Aids & Adaptations,Adult Services,AD ICES,995.00
2202094,CB Building And Joinery Ltd,11/07/2011,44051,Clients Aids & Adaptations,Adult Services,AD ICES,500.00
2206145,CBM#Central Building Maintenance#CBM Roofing,18/07/2011,20100,Day To Day Maintenance,Central Corporate,Land & Property,559.45
2198694,CEMEX UK Materials Ltd,18/07/2011,Z6008,Expense AP Accrual,Bolton MBC Balance Sheet,Bolton MBC Balance Sheet,"1,003.24"
2205971,CEMEX UK Materials Ltd,14/07/2011,Z6008,Expense AP Accrual,Bolton MBC Balance Sheet,Bolton MBC Balance Sheet,743.63
2205974,CEMEX UK Materials Ltd,14/07/2011,Z6008,Expense AP Accrual,Bolton MBC Balance Sheet,Bolton MBC Balance Sheet,922.87
2205975,CEMEX UK Materials Ltd,14/07/2011,Z6008,Expense AP Accrual,Bolton MBC Balance Sheet,Bolton MBC Balance Sheet,917.36
2205977,CEMEX UK Materials Ltd,14/07/2011,Z6008,Expense AP Accrual,Bolton MBC Balance Sheet,Bolton MBC Balance Sheet,664.59
2198688,CEMEX UK Materials Ltd,14/07/2011,Z6008,Expense AP Accrual,Bolton MBC Balance Sheet,Bolton MBC Balance Sheet,"2,299.83"
2198693,CEMEX UK Materials Ltd,18/07/2011,Z6008,Expense AP Accrual,Bolton MBC Balance Sheet,Bolton MBC Balance Sheet,906.73
2198583,CILIP,21/07/2011,47200,General Subscriptions,Adult Services,LMA Management,675.00
2214490,CMS Pozament-Tarmac Limited,28/07/2011,Z6008,Expense AP Accrual,Bolton MBC Balance Sheet,Bolton MBC Balance Sheet,"1,055.12"
2197237,Cameron House Care Home,05/07/2011,54301,Residential Provision,Adult Services,OA  External Provision Residential,"1,543.56"
2214128,Canon (UK) Limited,28/07/2011,43030,Photocopying Lease/Maintenance,Central Corporate,City Challenge,"1,691.27"
2214141,Canon (UK) Limited,28/07/2011,43030,Photocopying Lease/Maintenance,Central Corporate,City Challenge,513.92
2214146,Canon (UK) Limited,28/07/2011,43030,Photocopying Lease/Maintenance,Central Corporate,City Challenge,923.53
2214162,Canon (UK) Limited,28/07/2011,43030,Photocopying Lease/Maintenance,Central Corporate,City Challenge,"1,423.07"
2214165,Canon (UK) Limited,28/07/2011,43030,Photocopying Lease/Maintenance,Central Corporate,City Challenge,"1,393.41"
2213695,Canon (UK) Limited,28/07/2011,43030,Photocopying Lease/Maintenance,Central Corporate,City Challenge,"2,075.13"
2213703,Canon (UK) Limited,28/07/2011,43030,Photocopying Lease/Maintenance,Central Corporate,City Challenge,"1,124.10"
2213716,Canon (UK) Limited,28/07/2011,43030,Photocopying Lease/Maintenance,Central Corporate,City Challenge,"1,112.40"
2213735,Canon (UK) Limited,28/07/2011,43030,Photocopying Lease/Maintenance,Central Corporate,City Challenge,"1,192.63"
2213763,Canon (UK) Limited,28/07/2011,43030,Photocopying Lease/Maintenance,Central Corporate,City Challenge,524.70
2213768,Canon (UK) Limited,28/07/2011,43030,Photocopying Lease/Maintenance,Central Corporate,City Challenge,519.20
2213770,Canon (UK) Limited,28/07/2011,43030,Photocopying Lease/Maintenance,Central Corporate,City Challenge,556.65
2211048,Capita Software Services,25/07/2011,45430,Computer Software,Finance Department,T&B Systems Project Team,"3,000.00"
2197252,Care Stanley Grange,05/07/2011,54301,Residential Provision,Adult Services,LD Purchaser Residential Care,"3,640.64"
2197252,Care Stanley Grange,05/07/2011,93258,Residential Provision,Adult Services,LD Purchaser Residential Care,"1,182.70"
2212241,Care Today Childrens Service,25/07/2011,52000,Vol Assoc Grants  General,Children's Services,Res Serv Agency Placements,"11,492.40"
2203293,Carewatch (Bolton),11/07/2011,52200,Contracted Services,Adult Services,OA  Home Care Services external provision,829.10
2200670,Carewatch (Bolton),07/07/2011,52200,Contracted Services,Adult Services,MH Residential External Provision,"1,103.81"
2203292,Carewatch (Bolton),11/07/2011,52200,Contracted Services,Adult Services,OA  Home Care Services external provision,"94,675.76"
2198153,Caring Alternatives Limited,07/07/2011,52200,Contracted Services,Adult Services,MH Residential External Provision,"1,861.44"
2205399,Caring Alternatives Limited,14/07/2011,52200,Contracted Services,Adult Services,MH Residential External Provision,"1,861.44"
2204847,REDACTED - PERSONAL DATA,14/07/2011,34402,Clients  Taxi Fares,Environmental Services,Social Needs Transport,"1,346.40"
2206524,Carlton Fuels Ltd,18/07/2011,31301,Vehicle Fuel,Environmental Services,Streets & Grounds,660.60
2202313,Catch 22,11/07/2011,52200,Contracted Services,Adult Services,Supporting People  Capital Financing,"4,355.96"
2204849,Central Cars & Buses,14/07/2011,34402,Clients  Taxi Fares,Environmental Services,Social Needs Transport,"1,728.90"
2197302,Chadderton Total Care Unit Ltd#EPH,05/07/2011,54302,Nursing Provision,Adult Services,OA  External Provision Residential,"1,405.00"
2200728,Challenger Site Services,14/07/2011,20400,Garden Maintenance,Environmental Services,Greenspace,"4,032.00"
2201237,Chassis & Cab Specialists,21/07/2011,52200,Contracted Services,Environmental Services,Transport Support Service,"3,540.00"
2201393,Chassis & Cab Specialists,21/07/2011,52200,Contracted Services,Environmental Services,Transport Support Service,"1,398.00"
2197209,Chataway Nursing Home,05/07/2011,54302,Nursing Provision,Adult Services,MH Residential External Provision,"2,035.04"
2197264,Cherry Hinton Nursing Home,05/07/2011,54302,Nursing Provision,Adult Services,OA  External Provision Residential,"1,896.00"
2205983,Cheshire Centre for Independant Living,18/07/2011,53000,Private Contracted Services,Adult Services,AD Direct Payments Team,"6,711.25"
2210420,Choices Home for Children Ltd,28/07/2011,52000,Vol Assoc Grants  General,Children's Services,Res Serv Agency Placements,"4,390.43"
2212091,Choices Home for Children Ltd,25/07/2011,52000,Vol Assoc Grants  General,Children's Services,Res Serv Agency Placements,"5,089.50"
2212085,Choices Home for Children Ltd,25/07/2011,52000,Vol Assoc Grants  General,Children's Services,Res Serv Agency Placements,"14,171.43"
2201543,Chrysalis Arts Ltd,25/07/2011,Z1051,Work in Progress Additions,Development & Regen,Development & Regeneration Capital,"3,000.00"
2203321,Chubb Electronic Security Ltd,11/07/2011,25102,Security Systems  Rental,Children's Services,Harwood Youth Centre,557.12
2204806,City Build Manchester Ltd,14/07/2011,Z1051,Work in Progress Additions,Property Services,Property Services Balance Sheet,"134,859.23"
2197238,Cleveleys Nursing Home,05/07/2011,54302,Nursing Provision,Adult Services,OA  External Provision Residential,"1,792.00"
2203552,Clicquot Utilities Ltd,11/07/2011,52200,Contracted Services,Finance Department,Housing Benefits,732.00
2205673,Clicquot Utilities Ltd,14/07/2011,52200,Contracted Services,Finance Department,Housing Benefits,627.00
2212403,Clicquot Utilities Ltd,25/07/2011,52200,Contracted Services,Finance Department,Housing Benefits,705.00
2213327,Co-op Funeral Services#The Co-operative Funeralcare,28/07/2011,48555,Coroners Body Conveyancing Fees,Central Corporate,Coroners,513.55
2205795,Colbre Projects Ltd,14/07/2011,Z1051,Work in Progress Additions,Environmental Services,Environmental Services Balance sheet,"111,550.00"
2214090,Comensura Ltd,28/07/2011,53102,Agency Staff  Other,Adult Services,AD  Contracts,"1,357.67"
2214090,Comensura Ltd,28/07/2011,53102,Agency Staff  Other,Adult Services,OA  Darley Court Intermediate Care,844.73
2214090,Comensura Ltd,28/07/2011,53102,Agency Staff  Other,Chief Executives Department,Food Control,"1,697.73"
2214090,Comensura Ltd,28/07/2011,53102,Agency Staff  Other,Chief Executives Department,Personnel Svs Occ Health Unit,944.84
2214090,Comensura Ltd,28/07/2011,53102,Agency Staff  Other,Environmental Services,Greenspace,"4,018.26"
2214090,Comensura Ltd,28/07/2011,53102,Agency Staff  Other,Environmental Services,Streets & Grounds,"6,038.70"
2214090,Comensura Ltd,28/07/2011,53102,Agency Staff  Other,Environmental Services,Waste,"5,127.10"
2214090,Comensura Ltd,28/07/2011,53102,Agency Staff  Other,Environmental Services,Transport Support Service,629.37
2214090,Comensura Ltd,28/07/2011,53102,Agency Staff  Other,Environmental Services,Markets  Rent Account,908.38
2214090,Comensura Ltd,28/07/2011,53102,Agency Staff  Other,Development & Regen,REDD ES Rechargeable Costs,"1,551.78"
2214090,Comensura Ltd,28/07/2011,53102,Agency Staff  Other,Children's Services,YOT  Fieldwork Team,933.80
2214090,Comensura Ltd,28/07/2011,53102,Agency Staff  Other,Children's Services,Business Support  Children Social Care,591.80
2214090,Comensura Ltd,28/07/2011,53102,Agency Staff  Other,Children's Services,Safeguarding Team North,924.13
2214090,Comensura Ltd,28/07/2011,53102,Agency Staff  Other,Children's Services,LAC Team South,968.53
2214090,Comensura Ltd,28/07/2011,53102,Agency Staff  Other,Finance Department,Finance Ap Centre of Excellence,614.60
2214090,Comensura Ltd,28/07/2011,53102,Agency Staff  Other,Finance Department,C.R.M. Operations,"4,671.32"
2214090,Comensura Ltd,28/07/2011,53102,Agency Staff  Other,Property Services,Asset Mngmnt Div Proc & Projects,564.03
2214090,Comensura Ltd,28/07/2011,53102,Agency Staff  Other,Property Services,Operational Facilities Management,"1,630.28"
2214090,Comensura Ltd,28/07/2011,53102,Agency Staff  Other,Property Services,Projects,"1,883.47"
2214090,Comensura Ltd,28/07/2011,53102,Agency Staff  Other,Legal Trading,Legal Services Trading Account,"2,051.04"
2214090,Comensura Ltd,28/07/2011,53102,Agency Staff  Other,Central Corporate,Coroners,588.32
2212965,Comensura Ltd,28/07/2011,53102,Agency Staff  Other,Adult Services,AD  Contracts,762.79
2212965,Comensura Ltd,28/07/2011,53102,Agency Staff  Other,Adult Services,OA  Darley Court Intermediate Care,"1,134.42"
2212965,Comensura Ltd,28/07/2011,53102,Agency Staff  Other,Chief Executives Department,Food Control,750.36
2212965,Comensura Ltd,28/07/2011,53102,Agency Staff  Other,Chief Executives Department,Personnel Svs Occ Health Unit,637.24
2212965,Comensura Ltd,28/07/2011,53102,Agency Staff  Other,Environmental Services,Greenspace,"3,638.47"
2212965,Comensura Ltd,28/07/2011,53102,Agency Staff  Other,Environmental Services,Streets & Grounds,"1,877.81"
2212965,Comensura Ltd,28/07/2011,53102,Agency Staff  Other,Environmental Services,Waste,"6,978.76"
2212965,Comensura Ltd,28/07/2011,53102,Agency Staff  Other,Environmental Services,Bereavement Services,"1,353.77"
2212965,Comensura Ltd,28/07/2011,53102,Agency Staff  Other,Environmental Services,Transport Support Service,512.83
2212965,Comensura Ltd,28/07/2011,53102,Agency Staff  Other,Environmental Services,Markets  Rent Account,"1,528.48"
2212965,Comensura Ltd,28/07/2011,53102,Agency Staff  Other,Children's Services,YOT  Fieldwork Team,933.80
2212965,Comensura Ltd,28/07/2011,53102,Agency Staff  Other,Children's Services,Business Support  Children Social Care,921.93
2212965,Comensura Ltd,28/07/2011,53102,Agency Staff  Other,Children's Services,Safeguarding Team North,"1,007.22"
2212965,Comensura Ltd,28/07/2011,53102,Agency Staff  Other,Children's Services,Safeguarding Team South,940.72
2212965,Comensura Ltd,28/07/2011,53102,Agency Staff  Other,Children's Services,LAC Team South,969.86
2212965,Comensura Ltd,28/07/2011,53102,Agency Staff  Other,Finance Department,C.R.M. Operations,"5,235.75"
2212965,Comensura Ltd,28/07/2011,53102,Agency Staff  Other,Housing GRF,Bolton Community Homes,816.61
2212965,Comensura Ltd,28/07/2011,53102,Agency Staff  Other,Property Services,Asset Mngmnt Div Proc & Projects,"1,648.64"
2212965,Comensura Ltd,28/07/2011,53102,Agency Staff  Other,Property Services,Operational Facilities Management,"1,836.43"
2212965,Comensura Ltd,28/07/2011,53102,Agency Staff  Other,Property Services,Projects,"1,771.64"
2212965,Comensura Ltd,28/07/2011,53102,Agency Staff  Other,Legal Trading,Legal Services Trading Account,"1,532.93"
2212965,Comensura Ltd,28/07/2011,53102,Agency Staff  Other,Central Corporate,Coroners,671.67
2213863,Comensura Ltd,28/07/2011,53102,Agency Staff  Other,Adult Services,AD  Contracts,"2,949.26"
2213863,Comensura Ltd,28/07/2011,53102,Agency Staff  Other,Adult Services,OA  Darley Court Intermediate Care,"1,423.50"
2213863,Comensura Ltd,28/07/2011,53102,Agency Staff  Other,Chief Executives Department,Food Control,"2,565.49"
2213863,Comensura Ltd,28/07/2011,53102,Agency Staff  Other,Chief Executives Department,Personnel Svs Occ Health Unit,722.50
2213863,Comensura Ltd,28/07/2011,53102,Agency Staff  Other,Environmental Services,Streets & Grounds,"1,409.35"
2213863,Comensura Ltd,28/07/2011,53102,Agency Staff  Other,Environmental Services,Waste,"20,462.37"
2213863,Comensura Ltd,28/07/2011,53102,Agency Staff  Other,Environmental Services,Bereavement Services,"1,600.54"
2213863,Comensura Ltd,28/07/2011,53102,Agency Staff  Other,Environmental Services,Transport Support Service,582.75
2213863,Comensura Ltd,28/07/2011,53102,Agency Staff  Other,Environmental Services,Markets  Rent Account,"1,527.22"
2213863,Comensura Ltd,28/07/2011,53102,Agency Staff  Other,Children's Services,YOT  Fieldwork Team,933.80
2213863,Comensura Ltd,28/07/2011,53102,Agency Staff  Other,Children's Services,Safeguarding Team North,991.75
2213863,Comensura Ltd,28/07/2011,53102,Agency Staff  Other,Children's Services,Safeguarding Team South,914.64
2213863,Comensura Ltd,28/07/2011,53102,Agency Staff  Other,Children's Services,LAC Team South,976.49
2213863,Comensura Ltd,28/07/2011,53102,Agency Staff  Other,Finance Department,Finance Ap Centre of Excellence,"1,097.50"
2213863,Comensura Ltd,28/07/2011,53102,Agency Staff  Other,Finance Department,C.R.M. Operations,"4,438.35"
2213863,Comensura Ltd,28/07/2011,53102,Agency Staff  Other,Property Services,Operational Facilities Management,"1,824.69"
2213863,Comensura Ltd,28/07/2011,53102,Agency Staff  Other,Property Services,Projects,"1,973.40"
2213863,Comensura Ltd,28/07/2011,53102,Agency Staff  Other,Legal Trading,Legal Services Trading Account,"3,491.66"
2202091,Comensura Ltd,11/07/2011,53102,Agency Staff  Other,Adult Services,AD  Contracts,"5,851.60"
2202091,Comensura Ltd,11/07/2011,53102,Agency Staff  Other,Chief Executives Department,Food Control,"1,707.46"
2202091,Comensura Ltd,11/07/2011,53102,Agency Staff  Other,Chief Executives Department,Personnel Svs Occ Health Unit,808.02
2202091,Comensura Ltd,11/07/2011,53102,Agency Staff  Other,Environmental Services,Greenspace,"3,227.61"
2202091,Comensura Ltd,11/07/2011,53102,Agency Staff  Other,Environmental Services,Streets & Grounds,"1,175.12"
2202091,Comensura Ltd,11/07/2011,53102,Agency Staff  Other,Environmental Services,Waste,"6,398.29"
2202091,Comensura Ltd,11/07/2011,53102,Agency Staff  Other,Environmental Services,Pest Control,542.77
2202091,Comensura Ltd,11/07/2011,53102,Agency Staff  Other,Environmental Services,Bereavement Services,"4,150.33"
2202091,Comensura Ltd,11/07/2011,53102,Agency Staff  Other,Environmental Services,Markets  Rent Account,"1,842.52"
2202091,Comensura Ltd,11/07/2011,53102,Agency Staff  Other,Children's Services,YOT  Fieldwork Team,933.80
2202091,Comensura Ltd,11/07/2011,53102,Agency Staff  Other,Children's Services,Business Support  Children Social Care,594.33
2202091,Comensura Ltd,11/07/2011,53102,Agency Staff  Other,Children's Services,Safeguarding Team North,924.13
2202091,Comensura Ltd,11/07/2011,53102,Agency Staff  Other,Children's Services,Safeguarding Team South,950.44
2202091,Comensura Ltd,11/07/2011,53102,Agency Staff  Other,Children's Services,LAC Team South,978.25
2202091,Comensura Ltd,11/07/2011,53102,Agency Staff  Other,Finance Department,Finance Ap Centre of Excellence,614.60
2202091,Comensura Ltd,11/07/2011,53102,Agency Staff  Other,Finance Department,C.R.M. Operations,"5,131.04"
2202091,Comensura Ltd,11/07/2011,53102,Agency Staff  Other,Housing GRF,Bolton Community Homes,816.61
2202091,Comensura Ltd,11/07/2011,53102,Agency Staff  Other,Property Services,Operational Facilities Management,"1,118.22"
2202091,Comensura Ltd,11/07/2011,53102,Agency Staff  Other,Property Services,Projects,"3,134.25"
2202091,Comensura Ltd,11/07/2011,53102,Agency Staff  Other,Legal Trading,Legal Services Trading Account,"2,737.20"
2202091,Comensura Ltd,11/07/2011,53102,Agency Staff  Other,Central Corporate,Coroners,747.40
2212247,Commission For The New Economy,25/07/2011,48510,Consultancy Fees,Development & Regen,"REDD Enterprise, Employment&Skills","5,000.00"
2201945,Community Care Options#3,11/07/2011,52200,Contracted Services,Adult Services,AD Local Involvement Network,"10,000.00"
2201960,Community Care Options#3,11/07/2011,52200,Contracted Services,Adult Services,AD Local Involvement Network,"21,250.00"
2200717,Community Care Options#3,07/07/2011,52200,Contracted Services,Adult Services,PD Purcahser Domiciliary Care,"1,212.96"
2200713,Community Care Options#3,07/07/2011,52200,Contracted Services,Adult Services,PD Purcahser Domiciliary Care,"1,773.90"
2200708,Community Care Options#3,07/07/2011,52200,Contracted Services,Adult Services,PD Purcahser Domiciliary Care,996.30
2213977,Complete Maintenance and Facilities Management,28/07/2011,26101,Contract Cleaning,Development & Regen,"REDD Enterprise, Employment&Skills","1,549.54"
2205389,Concept Heating,14/07/2011,Z1051,Work in Progress Additions,Housing GRF,Capital  General Fund,"8,900.00"
2198709,Conservation Contracts North West Ltd,07/07/2011,52200,Contracted Services,Environmental Services,Greenspace,"2,426.49"
2206902,Contour Housing Group,18/07/2011,48629,Miscellaneous Expenses,Adult Services,LD Provider  Supported Housing,"1,029.60"
2202315,Contour Housing Group,11/07/2011,52200,Contracted Services,Adult Services,Supporting People  Capital Financing,"9,044.00"
2210273,Corlett Electrical  Engineering Company Ltd,21/07/2011,52208,Contracted Services PAT Testing,Property Services,Operational Facilities Management,"2,094.40"
2210271,Corlett Electrical  Engineering Company Ltd,21/07/2011,52208,Contracted Services PAT Testing,Property Services,Operational Facilities Management,"3,310.12"
2210268,Corlett Electrical  Engineering Company Ltd,21/07/2011,52208,Contracted Services PAT Testing,Property Services,Operational Facilities Management,"4,044.50"
2197243,Cornerstone Trust,05/07/2011,54301,Residential Provision,Adult Services,LD Purchaser Residential Care,"18,540.00"
2205644,Cornerstone Trust,14/07/2011,52200,Contracted Services,Adult Services,LD Purchaser Supported Housing,"10,071.42"
2208571,Cornthwaite Tree Care,28/07/2011,52200,Contracted Services,Environmental Services,Greenspace,"6,291.38"
2197300,Cotebrook,05/07/2011,54301,Residential Provision,Adult Services,PD Purchaser Residential Care,"1,964.00"
2202032,Coutts Information Services Ltd,11/07/2011,40753,Book Fund Expenditure,Adult Services,Libraries  Resources,591.88
2204281,Coutts Information Services Ltd,18/07/2011,40753,Book Fund Expenditure,Adult Services,Libraries  Resources,907.00
2209335,Creative Support Ltd#3,25/07/2011,52200,Contracted Services,Adult Services,MH Day Care External Provision,"18,547.57"
2205605,Creative Support Ltd#3,14/07/2011,52200,Contracted Services,Adult Services,Drugs Fieldwork,"7,966.75"
2205607,Creative Support Ltd#3,14/07/2011,52200,Contracted Services,Adult Services,MH Residential External Provision,"41,043.50"
2203290,Creative Support Ltd#3,11/07/2011,52200,Contracted Services,Adult Services,OA  Home Care Services external provision,"24,885.13"
2205836,Criminal Records Bureau#CRB,14/07/2011,19400,Disclosure Monitoring,Chief Executives Department,HR  Resourcing & Policy,"19,008.00"
2214443,Criminal Records Bureau#CRB,28/07/2011,19400,Disclosure Monitoring,Chief Executives Department,Licensing (Client),"3,168.00"
2208588,Crossroads Caring for Carers,18/07/2011,52200,Contracted Services,Adult Services,OA  Home Care Services external provision,"21,853.10"
2208833,Cube 3 Marketing Ltd#Aldermore Invoice Finance,28/07/2011,48203,Marketing,Central Services,Marketing  Development,"2,205.00"
2202260,D Ratcliffe Plumbing & Heating Ltd,11/07/2011,Z1051,Work in Progress Additions,Housing Revenue Account,Capital  HRA,"4,257.06"
2205949,D Ratcliffe Plumbing & Heating Ltd,14/07/2011,Z1051,Work in Progress Additions,Housing GRF,Capital  General Fund,"8,367.00"
2208391,DBD Mechanical & Electrical Building Services,18/07/2011,Z1051,Work in Progress Additions,Housing Revenue Account,Capital  HRA,"1,642.00"
2202236,DCS Joncare Ltd,14/07/2011,44051,Clients Aids & Adaptations,Adult Services,AD ICES,745.00
2206998,DS Building Services UK Ltd,18/07/2011,Z1051,Work in Progress Additions,Adult Services,Adult Services Balance Sheet,"2,890.00"
2205972,DS Building Services UK Ltd,14/07/2011,44051,Clients Aids & Adaptations,Adult Services,AD ICES,880.00
2210607,DS Building Services UK Ltd,25/07/2011,44051,Clients Aids & Adaptations,Adult Services,AD ICES,860.00
2210611,DS Building Services UK Ltd,25/07/2011,44051,Clients Aids & Adaptations,Adult Services,AD ICES,875.00
2204640,DS Building Services UK Ltd,14/07/2011,44051,Clients Aids & Adaptations,Adult Services,AD ICES,960.00
2201959,Dandy Booksellers Ltd,25/07/2011,40753,Book Fund Expenditure,Adult Services,Libraries  Resources,"8,820.65"
2198336,Danvic Turf Care Ltd,21/07/2011,53000,Private Contracted Services,Environmental Services,Greenspace,"11,398.00"
2204307,Dataspace,14/07/2011,22006,Rent of Storage Facilities,Adult Services,AD Business Development Team,534.74
2214095,Dataspace,28/07/2011,48506,Records Storage,Legal Trading,Legal Services Trading Account,728.50
2205705,Dave Holt Kite Displays,25/07/2011,48521,Research Costs,Environmental Services,Greenspace,750.00
2205940,David G Ross Ltd,21/07/2011,40609,Horticultural Materials,Environmental Services,Heaton Fold,715.82
2202007,Days Healthcare#Days Medical Aids Ltd#Factor Patterson Medical Ltd,11/07/2011,44051,Clients Aids & Adaptations,Adult Services,AD ICES,986.50
2197275,Deanwood Manor Care Home,05/07/2011,54302,Nursing Provision,Adult Services,OA  External Provision Residential,"1,332.88"
2201075,Delaware Communications Plc,07/07/2011,Z1051,Work in Progress Additions,Housing Revenue Account,Capital  HRA,"1,076.87"
2208553,Dell Corporation Ltd,28/07/2011,45405,Computer Consumables,Chief Executives Department,Performance & Scrutiny,"1,051.50"
2211348,Derek Smith & Co#3,26/07/2011,Z1051,Work in Progress Additions,Housing GRF,Capital  General Fund,"55,000.00"
2214126,Derian House Childrens Hospice,28/07/2011,52200,Contracted Services,Children's Services,Admin Commissioning,"3,750.00"
2206954,Destitute Animal Shelter,18/07/2011,53000,Private Contracted Services,Environmental Services,Education & Enforcement,"1,085.00"
2201090,Destitute Animal Shelter,07/07/2011,53000,Private Contracted Services,Environmental Services,Education & Enforcement,871.50
2205386,Direct Line Maintenance Services Ltd,14/07/2011,Z1051,Work in Progress Additions,Housing GRF,Capital  General Fund,"1,500.00"
2205340,District Surveyors Association Ltd t/a LABC,14/07/2011,47200,General Subscriptions,Development & Regen,D&R Building NonTrading,"2,611.44"
2197263,Dolphinlee House,05/07/2011,54301,Residential Provision,Adult Services,OA  External Provision Residential,"1,866.00"
2197278,Douglas Bank Nursing Home#Tudor Bank Ltd,05/07/2011,54302,Nursing Provision,Adult Services,OA  External Provision Residential,"1,903.40"
2197261,Dove Court Residential & Nursing Home,05/07/2011,54301,Residential Provision,Adult Services,OA  External Provision Residential,"1,462.00"
2202262,Dove Marketing,11/07/2011,44051,Clients Aids & Adaptations,Adult Services,AD ICES,533.00
2197277,Downshaw Lodge,05/07/2011,54302,Nursing Provision,Adult Services,OA  External Provision Residential,"1,803.16"
2206861,Drs. Direct Ltd#Bibby Factors Leicester Limited,18/07/2011,53100,Agency Staff  Fulltime,Chief Executives Department,Personnel Svs Occ Health Unit,900.00
2213316,Drs. Direct Ltd#Bibby Factors Leicester Limited,28/07/2011,53100,Agency Staff  Fulltime,Chief Executives Department,Personnel Svs Occ Health Unit,600.00
2206865,Drs. Direct Ltd#Bibby Factors Leicester Limited,18/07/2011,53100,Agency Staff  Fulltime,Chief Executives Department,Personnel Svs Occ Health Unit,900.00
2206867,Drs. Direct Ltd#Bibby Factors Leicester Limited,18/07/2011,53100,Agency Staff  Fulltime,Chief Executives Department,Personnel Svs Occ Health Unit,900.00
2206864,Drs. Direct Ltd#Bibby Factors Leicester Limited,18/07/2011,53100,Agency Staff  Fulltime,Chief Executives Department,Personnel Svs Occ Health Unit,900.00
2204858,Dunnes Travel Services#DTS,14/07/2011,34402,Clients  Taxi Fares,Environmental Services,Social Needs Transport,"1,377.00"
2212253,Durable Ltd,25/07/2011,20106,Glazing,Property Services,Annual Charge Holding Account,614.00
2204852,Durable Ltd,14/07/2011,20106,Glazing,Property Services,Annual Charge Holding Account,"1,234.58"
2205397,Dyson Insulations Ltd,14/07/2011,Z1051,Work in Progress Additions,Housing GRF,Capital  General Fund,"1,500.00"
2204470,E.ON Energy#2,14/07/2011,21100,Electricity  General,Housing Revenue Account,Housing Revenue Account,"1,647.65"
2204472,E.ON Energy#2,14/07/2011,21200,Gas  General,Housing Revenue Account,Housing Revenue Account,"1,116.69"
2205793,EMB Consultants Ltd,14/07/2011,Z1051,Work in Progress Additions,Environmental Services,Environmental Services Balance sheet,"2,000.00"
2204463,Eccles Construction,14/07/2011,20100,Day To Day Maintenance,Adult Services,Prop. Servs. Alderbank,712.34
2198168,Ecclesholme,05/07/2011,54301,Residential Provision,Adult Services,OA  External Provision Residential,"1,344.68"
2208717,Ecomix Concrete Ltd,28/07/2011,Z6008,Expense AP Accrual,Bolton MBC Balance Sheet,Bolton MBC Balance Sheet,680.00
2208719,Ecomix Concrete Ltd,28/07/2011,Z6008,Expense AP Accrual,Bolton MBC Balance Sheet,Bolton MBC Balance Sheet,552.50
2200658,Ecomix Concrete Ltd,11/07/2011,Z6008,Expense AP Accrual,Bolton MBC Balance Sheet,Bolton MBC Balance Sheet,795.90
2200661,Ecomix Concrete Ltd,11/07/2011,Z6008,Expense AP Accrual,Bolton MBC Balance Sheet,Bolton MBC Balance Sheet,578.00
2198704,Ecomix Concrete Ltd,14/07/2011,Z6008,Expense AP Accrual,Bolton MBC Balance Sheet,Bolton MBC Balance Sheet,527.00
2198537,Ecomix Concrete Ltd,11/07/2011,Z6008,Expense AP Accrual,Bolton MBC Balance Sheet,Bolton MBC Balance Sheet,704.50
2198540,Ecomix Concrete Ltd,11/07/2011,Z6008,Expense AP Accrual,Bolton MBC Balance Sheet,Bolton MBC Balance Sheet,583.50
2198541,Ecomix Concrete Ltd,11/07/2011,Z6008,Expense AP Accrual,Bolton MBC Balance Sheet,Bolton MBC Balance Sheet,547.00
2206849,Electricity North West#United Utilities Electricity Services Ltd,18/07/2011,40610,Direct Materials,Environmental Services,Lighting / Stores Billable Costs,520.00
2206836,Electricity North West#United Utilities Electricity Services Ltd,18/07/2011,Z1051,Work in Progress Additions,Highways,Stores,575.02
2206835,Electricity North West#United Utilities Electricity Services Ltd,18/07/2011,Z1051,Work in Progress Additions,Highways,Stores,520.00
2197230,Ellershaw House Ltd,05/07/2011,54301,Residential Provision,Adult Services,LD Purchaser Residential Care,"9,098.36"
2198578,Elygra Marketing Services,21/07/2011,48203,Marketing,Environmental Services,Catering,"2,882.95"
2198573,Elygra Marketing Services,21/07/2011,48203,Marketing,Environmental Services,Catering,"1,261.00"
2211184,Engineering Service Co,25/07/2011,25105,Other Security,Environmental Services,Security Services,"1,732.67"
2208658,Engineering Service Co,18/07/2011,47106,Xmas Lights,Environmental Services,Engineering Projects,"1,421.00"
2210546,Engineering Service Co,21/07/2011,20300,Heating & Electrical Work,Property Services,Wellsprings  BMBC,"1,390.76"
2202316,English Churches Housing Group#4,11/07/2011,52200,Contracted Services,Adult Services,Supporting People  Capital Financing,"8,525.72"
2197222,Epworth Grange,05/07/2011,54301,Residential Provision,Adult Services,OA  External Provision Residential,"1,583.56"
2204862,Euro Minibuses,14/07/2011,34402,Clients  Taxi Fares,Environmental Services,Social Needs Transport,"2,754.00"
2205588,European Wellcare EDUCATION Ltd,14/07/2011,54301,Residential Provision,Adult Services,LD Purchaser Residential Care,"3,338.30"
2198572,Evac & Chair International Ltd,11/07/2011,40106,Op Equip Health & Safety,Property Services,Operational Facilities Management,"1,481.00"
2205161,F Brewer & Son,25/07/2011,52200,Contracted Services,Environmental Services,Greenspace,882.00
2205609,F R Sharrock Ltd,14/07/2011,40102,Operational Equipment Rental,Environmental Services,Greenspace,"15,559.50"
2205609,F R Sharrock Ltd,14/07/2011,40102,Operational Equipment Rental,Environmental Services,Bereavement Services,"1,291.67"
2206957,F R Sharrock Ltd,18/07/2011,40102,Operational Equipment Rental,Environmental Services,Greenspace,"15,642.83"
2206957,F R Sharrock Ltd,18/07/2011,40102,Operational Equipment Rental,Environmental Services,Bereavement Services,"1,266.67"
2210523,F R Sharrock Ltd,25/07/2011,40102,Operational Equipment Rental,Environmental Services,Greenspace,"1,500.00"
2211212,Falon Nameplates Ltd,25/07/2011,40601,General Materials,Environmental Services,Bereavement Services,"1,227.50"
2201229,Faun Zoeller (UK) Ltd,21/07/2011,52200,Contracted Services,Environmental Services,Transport Support Service,827.03
2206163,Fibrelite (North West) Ltd,18/07/2011,45400,Computer Purchase,Finance Department,Corporate IT Investment,"2,940.00"
2208477,Field & Lawn (Marquees) Ltd,18/07/2011,40102,Operational Equipment Rental,Development & Regen,Project Revenue Account,"1,343.82"
2212484,Field & Lawn (Marquees) Ltd,25/07/2011,40102,Operational Equipment Rental,Development & Regen,Project Revenue Account,"2,687.63"
2203288,First Call Community Systems Ltd t/a SureCare,11/07/2011,52200,Contracted Services,Adult Services,OA  Home Care Services external provision,"42,081.88"
2203294,Firstcall Healthcare#Passhall Ltd,11/07/2011,52200,Contracted Services,Adult Services,OA  Home Care Services external provision,"70,481.24"
2208385,Floor Design,18/07/2011,20100,Day To Day Maintenance,Housing Revenue Account,HRA North,"3,060.00"
2200662,Forensics Ltd#ROAR,21/07/2011,48549,CoronersToxicology/Histology tests,Central Corporate,Coroners,"1,950.00"
2202290,Fortalice Ltd#Bolton Womens Aid,11/07/2011,52200,Contracted Services,Adult Services,Supporting People  Capital Financing,"19,774.16"
2201259,Foster CARES Ltd#Resource Partners SPV Limited,21/07/2011,52000,Vol Assoc Grants  General,Children's Services,Disability Serv External Provision,770.00
2201258,Foster CARES Ltd#Resource Partners SPV Limited,21/07/2011,52000,Vol Assoc Grants  General,Children's Services,Disability Serv External Provision,770.00
2209316,Foster CARES Ltd#Resource Partners SPV Limited,28/07/2011,52000,Vol Assoc Grants  General,Children's Services,Disability Serv External Provision,770.00
2209311,Foster CARES Ltd#Resource Partners SPV Limited,28/07/2011,52000,Vol Assoc Grants  General,Children's Services,Disability Serv External Provision,770.00
2201257,Foster CARES Ltd#Resource Partners SPV Limited,21/07/2011,52000,Vol Assoc Grants  General,Children's Services,Res Serv Agency Placements,938.40
2209309,Foster CARES Ltd#Resource Partners SPV Limited,28/07/2011,52000,Vol Assoc Grants  General,Children's Services,Res Serv Agency Placements,938.40
2205794,Foster Care Associates Ltd,14/07/2011,52000,Vol Assoc Grants  General,Children's Services,Res Serv Agency Placements,"4,312.10"
2205226,Foster Refrigerator,25/07/2011,40100,Operational Equipment Purchase,Adult Services,OA  Community Meals,"1,362.00"
2197179,Four Seasons Nursing Home,05/07/2011,54301,Residential Provision,Adult Services,OA  External Provision Residential,"34,241.68"
2197179,Four Seasons Nursing Home,05/07/2011,54301,Residential Provision,Adult Services,PD Purchaser Residential Care,"9,179.88"
2197179,Four Seasons Nursing Home,05/07/2011,54302,Nursing Provision,Adult Services,OA  External Provision Residential,"33,738.80"
2197179,Four Seasons Nursing Home,05/07/2011,54302,Nursing Provision,Adult Services,LD Purchaser Residential Care,"1,514.64"
2197179,Four Seasons Nursing Home,05/07/2011,93259,Nursing Home Provision,Adult Services,OA  External Provision Residential,751.53
2197178,Four Seasons Nursing Home,05/07/2011,54301,Residential Provision,Adult Services,OA  External Provision Residential,"1,190.07"
2201244,Fuchs Lubricants (UK) plc,21/07/2011,31305,Vehicle Servicing,Environmental Services,Transport Support Service,"2,329.62"
2200764,Fuchs Lubricants (UK) plc,18/07/2011,31305,Vehicle Servicing,Environmental Services,Transport Support Service,"2,630.50"
2205707,Fujitsu Services Limited,18/07/2011,Z1051,Work in Progress Additions,Environmental Services,Environmental Services Balance sheet,"5,879.70"
2210400,Fujitsu Services Limited,28/07/2011,52200,Contracted Services,Finance Department,Government Connect,"1,792.16"
2210341,Fujitsu Services Limited,28/07/2011,Z1051,Work in Progress Additions,Central Services,Central Services Balance Sheet,"2,605.80"
2200694,G & K Refractories Ltd,14/07/2011,20500,R & M Cremators,Environmental Services,Bereavement Services,"1,689.00"
2209368,G & S Smirthwaite Ltd,21/07/2011,44051,Clients Aids & Adaptations,Adult Services,AD ICES,627.00
2212121,G4S Cash Solutions,25/07/2011,44402,Security Cash Collection,Finance Department,CSD Cashiers,"6,352.72"
2197948,G4S Cash Solutions,14/07/2011,44402,Security Cash Collection,Finance Department,CSD Cashiers,694.99
2198596,Gibsons Joiners & Builders Ltd,07/07/2011,Z1051,Work in Progress Additions,Housing GRF,Capital  General Fund,"4,014.20"
2210277,GlaxoSmithKline UK Ltd#Consumer Healthcare#GSK,28/07/2011,44052,Clients Medical Requisites,Chief Executives Department,Personnel Svs Occ Health Unit,"1,299.20"
2197180,Glenbank Care Home Ltd,05/07/2011,54301,Residential Provision,Adult Services,OA  External Provision Residential,"17,173.99"
2197180,Glenbank Care Home Ltd,05/07/2011,54301,Residential Provision,Adult Services,PD Purchaser Residential Care,"1,493.52"
2197226,Glenhomes Rest Home,05/07/2011,54301,Residential Provision,Adult Services,OA  External Provision Residential,"16,448.04"
2197226,Glenhomes Rest Home,05/07/2011,54301,Residential Provision,Adult Services,LD Purchaser Residential Care,"1,493.52"
2210255,Good & Tillotson Limited#g&t architects,21/07/2011,52200,Contracted Services,Property Services,Projects,600.00
2210259,Good & Tillotson Limited#g&t architects,21/07/2011,52200,Contracted Services,Property Services,Projects,"2,796.00"
2197181,Gorsey Clough Nursing Home Ltd,05/07/2011,54301,Residential Provision,Adult Services,OA  External Provision Residential,"1,583.56"
2197181,Gorsey Clough Nursing Home Ltd,05/07/2011,54302,Nursing Provision,Adult Services,OA  External Provision Residential,"12,668.48"
2197182,Grange Lea Residential Care Home Ltd,05/07/2011,54301,Residential Provision,Adult Services,OA  External Provision Residential,"23,529.84"
2202318,Great Places Housing Association,11/07/2011,52200,Contracted Services,Adult Services,Supporting People  Capital Financing,"24,729.88"
2208723,Greenchem Solutions Ltd,28/07/2011,31305,Vehicle Servicing,Environmental Services,Transport Support Service,608.32
2197984,Greenlands Residential Home#Mrs A Khan & Mrs S Hussain2,05/07/2011,54301,Residential Provision,Adult Services,OA  External Provision Residential,"22,390.96"
2204838,Gulzar Khan T/A Bolton Black Cab,14/07/2011,34402,Clients  Taxi Fares,Environmental Services,Social Needs Transport,"1,769.40"
2197210,Haighfield Nursing Home,05/07/2011,54302,Nursing Provision,Adult Services,OA  External Provision Residential,"1,494.08"
2197254,Half Acre Care Centre,05/07/2011,54301,Residential Provision,Adult Services,OA  External Provision Residential,"1,543.56"
2201793,Halliwell Befriending Service,11/07/2011,52000,Vol Assoc Grants  General,Adult Services,OA  Day Care Provision  external,"5,588.96"
2201113,Halton Container Services Ltd,25/07/2011,53000,Private Contracted Services,Environmental Services,Waste,951.80
2201118,Halton Container Services Ltd,14/07/2011,53000,Private Contracted Services,Environmental Services,Trade Waste,"2,454.20"
2202319,Hanover Housing Association#2,11/07/2011,52200,Contracted Services,Adult Services,Supporting People  Capital Financing,"2,089.36"
2197269,Harbour Close,05/07/2011,54301,Residential Provision,Adult Services,PD Purchaser Residential Care,"3,877.88"
2210535,Hardscape Products Ltd,21/07/2011,Z1051,Work in Progress Additions,Development & Regen,Development & Regeneration Capital,"9,236.14"
2214124,Harmony Youth Project,28/07/2011,52200,Contracted Services,Children's Services,Admin Commissioning,"4,500.00"
2205587,REDACTED - PERSONAL DATA,14/07/2011,20100,Day To Day Maintenance,Environmental Services,Depots,534.00
2205390,Harwood Heating Services Ltd,14/07/2011,Z1051,Work in Progress Additions,Housing GRF,Capital  General Fund,"5,500.00"
2197280,Haylands Residential Home,05/07/2011,54301,Residential Provision,Adult Services,OA  External Provision Residential,"1,481.92"
2197227,Hazelbrook Christian Nursing Home,05/07/2011,54301,Residential Provision,Adult Services,OA  External Provision Residential,"6,002.40"
2197227,Hazelbrook Christian Nursing Home,05/07/2011,54302,Nursing Provision,Adult Services,OA  External Provision Residential,"8,266.98"
2212303,Healds Solicitors,26/07/2011,Z1051,Work in Progress Additions,Housing GRF,Capital  General Fund,"52,000.00"
2212301,Healds Solicitors,26/07/2011,Z1051,Work in Progress Additions,Housing GRF,Capital  General Fund,"52,000.00"
2212297,Healds Solicitors,26/07/2011,Z1051,Work in Progress Additions,Housing GRF,Capital  General Fund,"53,000.00"
2213324,Healthwork Ltd,28/07/2011,53100,Agency Staff  Fulltime,Chief Executives Department,Personnel Svs Occ Health Unit,"1,100.00"
2213322,Healthwork Ltd,28/07/2011,53100,Agency Staff  Fulltime,Chief Executives Department,Personnel Svs Occ Health Unit,"1,100.00"
2213328,Healthwork Ltd,28/07/2011,53100,Agency Staff  Fulltime,Chief Executives Department,Personnel Svs Occ Health Unit,"1,100.00"
2213320,Healthwork Ltd,28/07/2011,53100,Agency Staff  Fulltime,Chief Executives Department,Personnel Svs Occ Health Unit,"1,100.00"
2201201,Hearing Products International Limited,18/07/2011,44051,Clients Aids & Adaptations,Adult Services,AD Sensory Impairment,"1,059.25"
2207856,Helping Hand Co (Ledbury) Ltd,18/07/2011,44051,Clients Aids & Adaptations,Adult Services,AD ICES,622.50
2197183,Henshaws Society For The Blind,05/07/2011,54301,Residential Provision,Adult Services,PD Purchaser Residential Care,"2,946.72"
2214564,Herbert T Forrest Ltd,28/07/2011,Z1051,Work in Progress Additions,Housing Revenue Account,Capital  HRA,"23,575.29"
2200840,Herbert T Forrest Ltd,07/07/2011,Z1051,Work in Progress Additions,Housing Revenue Account,Capital  HRA,"28,180.64"
2200860,Herbert T Forrest Ltd,07/07/2011,Z1051,Work in Progress Additions,Housing Revenue Account,Capital  HRA,"25,610.00"
2208368,Hibbert Community Regeneration Centre Ltd,18/07/2011,47103,Miscellaneous Grants,Chief Executives Department,Voluntary Sector Grants,"5,000.00"
2197257,Highfield Hall Care Centre,05/07/2011,54301,Residential Provision,Adult Services,OA  External Provision Residential,"3,618.00"
2197274,Highfield House Care Home#Factor Dhillon Financila Services (UK) Ltd,05/07/2011,54301,Residential Provision,Adult Services,OA  External Provision Residential,"1,378.00"
2197208,Hillcrest,05/07/2011,54301,Residential Provision,Adult Services,OA  External Provision Residential,"1,650.36"
2197988,Hillcrest Care Ltd,05/07/2011,54301,Residential Provision,Adult Services,LD Purchaser Residential Care,"4,870.72"
2197188,Hollands Nursing Home,05/07/2011,54301,Residential Provision,Adult Services,OA  External Provision Residential,"5,974.08"
2197188,Hollands Nursing Home,05/07/2011,54301,Residential Provision,Adult Services,PD Purchaser Residential Care,"15,448.36"
2197188,Hollands Nursing Home,05/07/2011,54301,Residential Provision,Adult Services,MH Residential External Provision,"4,465.70"
2197188,Hollands Nursing Home,05/07/2011,54302,Nursing Provision,Adult Services,OA  External Provision Residential,"1,493.52"
2197188,Hollands Nursing Home,05/07/2011,54302,Nursing Provision,Adult Services,MH Residential External Provision,"8,420.08"
2197990,Holtwood House#Factor ARC Adventure (Bury) Ltd,05/07/2011,54301,Residential Provision,Adult Services,LD Purchaser Residential Care,"8,241.80"
2212250,Holtwood House#Factor ARC Adventure (Bury) Ltd,25/07/2011,52000,Vol Assoc Grants  General,Children's Services,Disability Serv External Provision,"13,650.23"
2205817,Holtwood House#Factor ARC Adventure (Bury) Ltd,14/07/2011,52000,Vol Assoc Grants  General,Children's Services,Disability Serv External Provision,"11,985.27"
2203285,Home Care For You Ltd # BLACKBURN,11/07/2011,52200,Contracted Services,Adult Services,OA  Home Care Services external provision,"26,104.78"
2205771,Homecare 4 U # BOLTON,14/07/2011,52200,Contracted Services,Adult Services,LD Purchaser Domiciliary Care,"1,005.96"
2205769,Homecare 4 U # BOLTON,14/07/2011,52200,Contracted Services,Adult Services,LD Purchaser Domiciliary Care,780.68
2205775,Homecare 4 U # BOLTON,14/07/2011,52200,Contracted Services,Adult Services,LD Purchaser Domiciliary Care,963.15
2211277,Homecraft Rolyan#Patterson Medical Ltd,25/07/2011,44051,Clients Aids & Adaptations,Adult Services,AD ICES,990.84
2197993,Homelea Residential Care Home,05/07/2011,54301,Residential Provision,Adult Services,OA  External Provision Residential,"1,763.16"
2201979,Horwich Visiting Service,11/07/2011,52000,Vol Assoc Grants  General,Adult Services,OA  Day Care Provision  external,"3,295.75"
2208661,Housing Partners Ltd,18/07/2011,45431,Computer Software Licences,Housing GRF,Access & Advice Choice Based Lettings,"27,320.15"
2205664,Howarth of London Ltd#Woodwind,28/07/2011,40610,Direct Materials,Children's Services,Music ServMusic Service general,"5,791.66"
2205371,Hugh Symons Information Management,14/07/2011,48506,Records Storage,Development & Regen,Development Management,"4,086.84"
2204864,Humayun Cabs#Humayun Zafar,14/07/2011,34402,Clients  Taxi Fares,Environmental Services,Social Needs Transport,"1,008.90"
2197177,Hyde  Lea,05/07/2011,54301,Residential Provision,Adult Services,OA  External Provision Residential,"11,674.88"
2197176,Hyde  Lea,05/07/2011,54301,Residential Provision,Adult Services,OA  External Provision Residential,953.05
2204923,I K Cars#Iqbal Vali Kola,14/07/2011,34402,Clients  Taxi Fares,Environmental Services,Social Needs Transport,979.20
2203070,IDOX Software Ltd,11/07/2011,45431,Computer Software Licences,Development & Regen,Spatial Data  from GIS,"17,454.55"
2213998,IE Ltd,28/07/2011,Z1051,Work in Progress Additions,Property Services,Property Services Balance Sheet,"4,000.00"
2214006,IE Ltd,28/07/2011,Z1051,Work in Progress Additions,Property Services,Property Services Balance Sheet,661.30
2204919,REDACTED - PERSONAL DATA,14/07/2011,34402,Clients  Taxi Fares,Environmental Services,Social Needs Transport,"1,540.80"
2204920,Ian Rowland#Sentinel,14/07/2011,34402,Clients  Taxi Fares,Environmental Services,Social Needs Transport,"1,551.60"
2204922,Iftikhar Cab#Iftikhar Ahmed,14/07/2011,34402,Clients  Taxi Fares,Environmental Services,Social Needs Transport,544.06
2209242,Iken Business Ltd,21/07/2011,45431,Computer Software Licences,Central Services,Director of Chief Executives Dept.,"4,416.52"
2210471,Images by Julie#Payee J Lomax,21/07/2011,48203,Marketing,Central Services,Marketing Committed Monies,520.00
2201209,Impression (Bolton) Limited#1,11/07/2011,48203,Marketing,Central Services,Marketing  General,"1,575.00"
2202256,Independence Mobility Ltd,14/07/2011,44051,Clients Aids & Adaptations,Adult Services,AD ICES,"1,124.00"
2202257,Independence Mobility Ltd,14/07/2011,44051,Clients Aids & Adaptations,Adult Services,AD ICES,"2,648.40"
2204314,Info Technology Supply Limited,18/07/2011,45401,Computer Maintenance,Adult Services,Information Systems,"4,794.88"
2203277,Inspirit Care (Bolton),11/07/2011,52200,Contracted Services,Adult Services,OA  Home Care Services external provision,"25,810.04"
2210337,Institute for Outdoor Learning,28/07/2011,19104,Training Exp  Ext Seminars,Chief Executives Department,Personnel Svs Occ Health Unit,"1,021.50"
2213074,Integral UK Ltd,28/07/2011,20100,Day To Day Maintenance,Central Corporate,Bolton Enterprise Centre,"10,693.44"
2213091,Integral UK Ltd,28/07/2011,20100,Day To Day Maintenance,Central Corporate,Bolton Enterprise Centre,"5,346.72"
2205647,Integrate (Preston & Chorley) Ltd,14/07/2011,52200,Contracted Services,Adult Services,LD Purchaser Domiciliary Care,"5,719.16"
2202320,Irwell Valley Housing Association,11/07/2011,52200,Contracted Services,Adult Services,Supporting People  Capital Financing,"21,150.64"
2204924,Ismail Patel#Ladybridge Private Hire,14/07/2011,34402,Clients  Taxi Fares,Environmental Services,Social Needs Transport,"2,964.60"
2211254,J Dickinson & Sons (Horwich) Ltd#2,25/07/2011,20501,Engineering Work,Environmental Services,Highways Managers,538.34
2211256,J Dickinson & Sons (Horwich) Ltd#2,25/07/2011,20501,Engineering Work,Environmental Services,Highways Managers,"2,302.54"
2198701,J Dickinson & Sons (Horwich) Ltd#2,07/07/2011,Z6008,Expense AP Accrual,Bolton MBC Balance Sheet,Bolton MBC Balance Sheet,"1,696.10"
2198534,J Dickinson & Sons (Horwich) Ltd#2,07/07/2011,Z6008,Expense AP Accrual,Bolton MBC Balance Sheet,Bolton MBC Balance Sheet,547.23
2211189,J Dickinson & Sons (Horwich) Ltd#2,25/07/2011,26106,Refuse Collection,Environmental Services,Bereavement Services,843.80
2200677,J Fisher & Sons Limited,11/07/2011,Z6008,Expense AP Accrual,Bolton MBC Balance Sheet,Bolton MBC Balance Sheet,"1,100.00"
2204313,J Hopkins (Contractors) Ltd,18/07/2011,Z6008,Expense AP Accrual,Bolton MBC Balance Sheet,Bolton MBC Balance Sheet,"27,238.66"
2204311,J Hopkins (Contractors) Ltd,18/07/2011,Z6008,Expense AP Accrual,Bolton MBC Balance Sheet,Bolton MBC Balance Sheet,"6,510.98"
2205944,J Maher Limited,14/07/2011,40609,Horticultural Materials,Environmental Services,Heaton Fold,570.88
2213086,J Phillips & Sons Ltd#1,28/07/2011,Z1051,Work in Progress Additions,Adult Services,Adult Services Balance Sheet,"7,506.19"
2213084,J Phillips & Sons Ltd#1,28/07/2011,Z1051,Work in Progress Additions,Adult Services,Adult Services Balance Sheet,"2,765.44"
2205173,J Taylor (Electrical Contractors) Ltd,14/07/2011,20100,Day To Day Maintenance,Children's Services,Technical Innovation Centre,"1,910.76"
2212409,Jack Smith & Sons Ltd,25/07/2011,Z1051,Work in Progress Additions,Housing GRF,Capital  General Fund,"2,829.60"
2212271,Jack Smith & Sons Ltd,28/07/2011,Z1051,Work in Progress Additions,Housing GRF,Capital  General Fund,"2,170.40"
2212412,Jack Smith & Sons Ltd,25/07/2011,Z1051,Work in Progress Additions,Housing GRF,Capital  General Fund,"20,339.50"
2197239,Jah-Jireh (Blackpool),05/07/2011,54301,Residential Provision,Adult Services,OA  External Provision Residential,"1,498.96"
2197996,Jah-Jireh (Leyland),05/07/2011,54301,Residential Provision,Adult Services,OA  External Provision Residential,"1,556.00"
2213284,REDACTED - PERSONAL DATA,28/07/2011,48509,Other Fees,Adult Services,Smithills Hall Museum,500.00
2201070,REDACTED - PERSONAL DATA,07/07/2011,19100,Training Exps Tuition Fees,Adult Services,AD  NTS Grant,950.00
2202255,Jenx Limited,11/07/2011,44051,Clients Aids & Adaptations,Adult Services,AD ICES,669.00
2206859,Jo Hossle-Standring T/a Jorchid,18/07/2011,53100,Agency Staff  Fulltime,Chief Executives Department,Personnel Svs Occ Health Unit,"1,300.00"
2206855,Jo Hossle-Standring T/a Jorchid,18/07/2011,53100,Agency Staff  Fulltime,Chief Executives Department,Personnel Svs Occ Health Unit,"1,300.00"
2205826,Jo Hossle-Standring T/a Jorchid,14/07/2011,53100,Agency Staff  Fulltime,Chief Executives Department,Personnel Svs Occ Health Unit,"2,080.00"
2208652,REDACTED - PERSONAL DATA,18/07/2011,48509,Other Fees,Children's Services,Artists in Schools  Bury,"1,437.12"
2205660,REDACTED - PERSONAL DATA,28/07/2011,48509,Other Fees,Adult Services,LMA External Funded Projects,"1,410.00"
2212216,KCOM Group PLC,25/07/2011,45613,Fujitsu  Managed Service,Adult Services,AD  IT,"9,702.00"
2207037,KPMG LLP,18/07/2011,48519,External Audit Fees,Finance Department,Financial Management,"4,755.00"
2212203,Kaleidoscope Care (Northwest) Ltd,25/07/2011,52000,Vol Assoc Grants  General,Children's Services,Res Serv Agency Placements,"9,600.00"
2205614,Kays Traffic Management Systems Ltd,25/07/2011,Z6008,Expense AP Accrual,Bolton MBC Balance Sheet,Bolton MBC Balance Sheet,800.00
2200738,Kays Traffic Management Systems Ltd,21/07/2011,33202,Plant Hire,Environmental Services,Highways Maintenance Billable Costs,520.00
2205612,Kays Traffic Management Systems Ltd,25/07/2011,20501,Engineering Work,Environmental Services,Highways Maintenance Billable Costs,"1,040.00"
2197218,Kenyon Lodge,05/07/2011,54301,Residential Provision,Adult Services,OA  External Provision Residential,"1,329.56"
2202019,Kernock Park Plants,18/07/2011,40609,Horticultural Materials,Environmental Services,Greenspace,"3,890.00"
2203280,Keymen Associates Ltd#Mayday,11/07/2011,52200,Contracted Services,Adult Services,OA  Home Care Services external provision,"34,753.73"
2197228,Knightswood Residential Home,05/07/2011,54301,Residential Provision,Adult Services,OA  External Provision Residential,"13,075.20"
2197896,LAS Manchester Ltd,11/07/2011,25002,Fixed Equipment   Rental,Development & Regen,Project Revenue Account,"3,500.00"
2200779,LPW (Europe) Ltd,21/07/2011,31305,Vehicle Servicing,Environmental Services,Transport Support Service,"1,008.00"
2197185,Ladymead Nursing Home#Factor Icon Healthcare (UK) Limited,05/07/2011,54301,Residential Provision,Adult Services,OA  External Provision Residential,"7,040.88"
2197185,Ladymead Nursing Home#Factor Icon Healthcare (UK) Limited,05/07/2011,54302,Nursing Provision,Adult Services,OA  External Provision Residential,"1,667.84"
2197185,Ladymead Nursing Home#Factor Icon Healthcare (UK) Limited,05/07/2011,54302,Nursing Provision,Adult Services,LD Purchaser Residential Care,"1,493.52"
2197273,Lake View Care Home,05/07/2011,54302,Nursing Provision,Adult Services,OA  External Provision Residential,"3,732.00"
2210606,Landscape Supply Company,28/07/2011,40601,General Materials,Environmental Services,Greenspace,849.90
2201093,Leigh Dogs and Cats Home Ltd,07/07/2011,53000,Private Contracted Services,Environmental Services,Education & Enforcement,"2,901.00"
2204925,Less Taxis / Mr L S Garsden,14/07/2011,34402,Clients  Taxi Fares,Environmental Services,Social Needs Transport,"1,514.70"
2197297,Lever Edge Care Home,05/07/2011,54301,Residential Provision,Adult Services,OA  External Provision Residential,"89,532.92"
2197297,Lever Edge Care Home,05/07/2011,54301,Residential Provision,Adult Services,PD Purchaser Residential Care,"1,514.64"
2203534,Lindsay Cunningham Limited,11/07/2011,48509,Other Fees,Children's Services,Management Team,696.60
2204828,Link Cars,14/07/2011,34402,Clients  Taxi Fares,Environmental Services,Social Needs Transport,"1,774.22"
2197291,Little Sisters of the Poor,05/07/2011,54301,Residential Provision,Adult Services,OA  External Provision Residential,"1,629.52"
2197878,REDACTED - PERSONAL DATA,28/07/2011,48502,Legal Fees,Children's Services,Management Team,"1,200.00"
2197307,Lumley Court,05/07/2011,54301,Residential Provision,Adult Services,OA  External Provision Residential,"1,905.76"
2197290,Lyndhurst,05/07/2011,54301,Residential Provision,Adult Services,OA  External Provision Residential,"3,038.00"
2197186,Lyngate Residential Home,05/07/2011,54301,Residential Provision,Adult Services,OA  External Provision Residential,"1,811.37"
2197187,Lyngate Residential Home,05/07/2011,54301,Residential Provision,Adult Services,OA  External Provision Residential,"32,657.92"
2204868,M & C Bird Limited,14/07/2011,Z1051,Work in Progress Additions,Housing Revenue Account,Capital  HRA,"25,610.00"
2201981,MHIST,11/07/2011,52000,Vol Assoc Grants  General,Adult Services,MH Day Care External Provision,"5,012.84"
2204940,MN Khan t/a Pal Minibuses,14/07/2011,34402,Clients  Taxi Fares,Environmental Services,Social Needs Transport,"1,377.00"
2211296,MRM Street Furniture Ltd,25/07/2011,40601,General Materials,Environmental Services,Bereavement Services,810.00
2198115,Making Space#4,07/07/2011,52200,Contracted Services,Adult Services,OA  Home Care Services external provision,"6,071.84"
2198205,Malcolm Nicholson & Son,07/07/2011,36200,Uninsured Losses  Vehicles,Environmental Services,Transport Support Service,602.06
2205736,Malcolm Nicholson & Son,14/07/2011,36200,Uninsured Losses  Vehicles,Environmental Services,Transport Support Service,"1,600.47"
2198446,Malcolm Nicholson & Son,07/07/2011,36200,Uninsured Losses  Vehicles,Environmental Services,Transport Support Service,"2,754.27"
2200691,Manchester Rotational Mouldings,14/07/2011,40601,General Materials,Environmental Services,Bereavement Services,810.00
2202237,Mangar International,14/07/2011,44051,Clients Aids & Adaptations,Adult Services,AD ICES,"1,278.20"
2197270,Manor Care Centre,05/07/2011,54301,Residential Provision,Adult Services,OA  External Provision Residential,"1,684.00"
2197294,Mariana House,05/07/2011,54301,Residential Provision,Adult Services,OA  External Provision Residential,"1,562.16"
2200696,REDACTED - PERSONAL DATA,14/07/2011,19100,Training Exps Tuition Fees,Adult Services,AD  NTS Grant,523.00
2212646,Mark Mangnall & Son,25/07/2011,20002,R&M Maintenance Charges,Adult Services,Prop. Servs. Jubilee Pool,508.00
2197229,Marley Court  Nursing & Residentail Home,05/07/2011,54301,Residential Provision,Adult Services,OA  External Provision Residential,"6,224.00"
2213035,Marsden Road Pharmacy,28/07/2011,52200,Contracted Services,Adult Services,Drugs Action Team,994.40
2198544,Marshalls Mono Limited,11/07/2011,Z6008,Expense AP Accrual,Bolton MBC Balance Sheet,Bolton MBC Balance Sheet,"1,394.88"
2198545,Marshalls Mono Limited,11/07/2011,Z6008,Expense AP Accrual,Bolton MBC Balance Sheet,Bolton MBC Balance Sheet,"1,394.88"
2209394,Marshalls Mono Limited,28/07/2011,Z6008,Expense AP Accrual,Bolton MBC Balance Sheet,Bolton MBC Balance Sheet,"1,394.88"
2201136,Marshalls Mono Limited,11/07/2011,Z6008,Expense AP Accrual,Bolton MBC Balance Sheet,Bolton MBC Balance Sheet,"1,394.88"
2209390,Marshalls Mono Limited,28/07/2011,Z6008,Expense AP Accrual,Bolton MBC Balance Sheet,Bolton MBC Balance Sheet,"1,394.88"
2204926,REDACTED - PERSONAL DATA,14/07/2011,34402,Clients  Taxi Fares,Environmental Services,Social Needs Transport,"1,001.16"
2200740,Marwood Group Limited,25/07/2011,33202,Plant Hire,Environmental Services,Highways Maintenance Billable Costs,"1,400.00"
2197211,Mary & Joseph House,05/07/2011,54301,Residential Provision,Adult Services,MH Residential External Provision,"5,647.08"
2197241,Meadow Bank House,05/07/2011,54301,Residential Provision,Adult Services,OA  External Provision Residential,"22,719.60"
2197241,Meadow Bank House,05/07/2011,54301,Residential Provision,Adult Services,PD Purchaser Residential Care,"1,460.55"
2197241,Meadow Bank House,05/07/2011,54302,Nursing Provision,Adult Services,OA  External Provision Residential,"4,543.92"
2197240,Meadow Bank House,05/07/2011,54301,Residential Provision,Adult Services,OA  External Provision Residential,703.23
2202266,Mealey Properties Ltd t/a BM Plumbing & Tiling,14/07/2011,Z1051,Work in Progress Additions,Housing Revenue Account,Capital  HRA,"5,306.00"
2207471,Mecrow Medical Services Ltd,18/07/2011,48509,Other Fees,Children's Services,Management Team,765.00
2206717,MediaCom North Ltd,18/07/2011,48203,Marketing,Central Services,Marketing  Development,"1,107.43"
2200762,Medway Galvanising Company Ltd,14/07/2011,40601,General Materials,Environmental Services,Greenspace,883.18
2210176,Medway Heating (Bolton)  Ltd,21/07/2011,40107,Kitchen Equipment,Environmental Services,Catering Refurbishment Account,"1,444.71"
2204989,Medway Heating (Bolton)  Ltd,14/07/2011,20100,Day To Day Maintenance,Adult Services,Prop. Servs. Thicketford,"2,470.00"
2205237,Medway Heating (Bolton)  Ltd,14/07/2011,20300,Heating & Electrical Work,Property Services,Paderborn House,"1,050.17"
2204986,Medway Heating (Bolton)  Ltd,14/07/2011,20100,Day To Day Maintenance,Central Corporate,Land & Property,"1,160.67"
2204953,Mehboob Valli Patel#SMA Cars,14/07/2011,34402,Clients  Taxi Fares,Environmental Services,Social Needs Transport,"2,919.60"
2198570,Michael Grant T/A MRG Heating & Plumbing,07/07/2011,Z1051,Work in Progress Additions,Housing GRF,Capital  General Fund,"2,995.00"
2212581,Microsoft Ireland Operations Ltd#2,25/07/2011,45431,Computer Software Licences,Finance Department,Microsoft Licenses,"52,518.77"
2205933,Middleton & Wood,28/07/2011,48555,Coroners Body Conveyancing Fees,Central Corporate,Coroners,795.46
2208371,Miller Metcalfe,18/07/2011,44054,Other Clients Services,Housing GRF,Access & Advice Home Ownership,500.00
2197248,Millview Nursing Home,05/07/2011,54301,Residential Provision,Adult Services,OA  External Provision Residential,"80,322.42"
2197248,Millview Nursing Home,05/07/2011,54301,Residential Provision,Adult Services,PD Purchaser Residential Care,"1,493.52"
2197248,Millview Nursing Home,05/07/2011,54301,Residential Provision,Adult Services,LD Purchaser Residential Care,"2,613.66"
2197248,Millview Nursing Home,05/07/2011,54302,Nursing Provision,Adult Services,OA  External Provision Residential,"40,756.76"
2197248,Millview Nursing Home,05/07/2011,54302,Nursing Provision,Adult Services,PD Purchaser Residential Care,"2,987.04"
2198569,Mint Northwest Ltd,07/07/2011,Z1051,Work in Progress Additions,Housing GRF,Capital  General Fund,"3,345.00"
2204604,Mint Northwest Ltd,21/07/2011,44051,Clients Aids & Adaptations,Adult Services,AD ICES,"1,464.05"
2198592,Mint Northwest Ltd,07/07/2011,Z1051,Work in Progress Additions,Housing GRF,Capital  General Fund,"4,347.83"
2205627,Mint Northwest Ltd,14/07/2011,Z1051,Work in Progress Additions,Housing GRF,Capital  General Fund,"3,626.05"
2198590,Mint Northwest Ltd,07/07/2011,Z1051,Work in Progress Additions,Housing GRF,Capital  General Fund,"7,028.44"
2209217,REDACTED - PERSONAL DATA,21/07/2011,48502,Legal Fees,Development & Regen,Development Management,675.00
2214290,REDACTED - PERSONAL DATA,28/07/2011,48502,Legal Fees,Development & Regen,Development Management,562.50
2205311,Mohammad Hanif Mulla#Daubhill Mini Bus,14/07/2011,34402,Clients  Taxi Fares,Environmental Services,Social Needs Transport,"1,193.40"
2205125,Morgan Heating Engineers,14/07/2011,Z1051,Work in Progress Additions,Housing GRF,Capital  General Fund,"6,500.00"
2212425,Mr A Vali T/A Rapid,25/07/2011,34402,Clients  Taxi Fares,Environmental Services,Social Needs Transport,675.00
2212435,Mr A Vali T/A Rapid,25/07/2011,34402,Clients  Taxi Fares,Environmental Services,Social Needs Transport,700.70
2212429,Mr A Vali T/A Rapid,25/07/2011,34402,Clients  Taxi Fares,Environmental Services,Social Needs Transport,633.60
2212422,Mr A Vali T/A Rapid,25/07/2011,34402,Clients  Taxi Fares,Environmental Services,Social Needs Transport,508.50
2212418,Mr A Vali T/A Rapid,25/07/2011,34402,Clients  Taxi Fares,Environmental Services,Social Needs Transport,585.00
2204835,Mr B Patel T/A Atlas Luxury Minibus,14/07/2011,34402,Clients  Taxi Fares,Environmental Services,Social Needs Transport,"1,509.40"
2214120,REDACTED - PERSONAL DATA,28/07/2011,48502,Legal Fees,Adult Services,Culture Overhead,"1,665.00"
2197873,REDACTED - PERSONAL DATA,07/07/2011,48502,Legal Fees,Children's Services,Management Team,500.00
2214093,REDACTED - PERSONAL DATA,28/07/2011,48502,Legal Fees,Children's Services,Management Team,"3,100.00"
2204853,Mr Mohammed Iqbal T/A Cobra Private Hire,14/07/2011,34402,Clients  Taxi Fares,Environmental Services,Social Needs Transport,"2,368.95"
2205909,REDACTED - PERSONAL DATA,14/07/2011,48557,Deputy Coroners Fees,Central Corporate,Coroners,"1,950.00"
2204947,REDACTED - PERSONAL DATA,14/07/2011,34402,Clients  Taxi Fares,Environmental Services,Social Needs Transport,"1,454.20"
2197869,REDACTED - PERSONAL DATA,07/07/2011,48502,Legal Fees,Children's Services,Management Team,"2,500.00"
2211607,NAS Services Ltd,25/07/2011,52200,Contracted Services,Adult Services,LD Purchaser Residential Care,"10,008.22"
2206505,NCC Group Secure Test Limited,28/07/2011,48510,Consultancy Fees,Finance Department,Government Connect,"13,065.83"
2214125,NCMA National Childminding Association,28/07/2011,52200,Contracted Services,Children's Services,Admin Commissioning,"4,750.00"
2206768,NIFES Consulting Group,18/07/2011,Z1051,Work in Progress Additions,Environmental Services,Environmental Services Balance sheet,"3,960.00"
2211279,NSL Limited#NSL Services Group,28/07/2011,44202,Contract UnitNonLEA,Environmental Services,Parking Services  On Street,"5,585.69"
2198628,NSL Limited#NSL Services Group,18/07/2011,44202,Contract UnitNonLEA,Environmental Services,Parking Services  On Street,"38,818.49"
2204934,NW United Ltd,14/07/2011,34402,Clients  Taxi Fares,Environmental Services,Social Needs Transport,"1,881.50"
2208480,NWN Media Ltd,18/07/2011,43001,Printing General,Central Services,Civic & Admin Scene,"7,086.00"
2204929,Nady Minibus#Mr N Q Ullah,14/07/2011,34402,Clients  Taxi Fares,Environmental Services,Social Needs Transport,"1,625.40"
2201082,National Car Parks Ltd#NCP,11/07/2011,37100,Car Parking,Environmental Services,Markets  Rent Account,938.10
2211295,National Car Parks Ltd#NCP,26/07/2011,Z1051,Work in Progress Additions,Central Corporate,Corporate Property Balance Sheet,"437,736.54"
2198644,Newsquest (North West) Ltd,07/07/2011,48200,Advertising General,Environmental Services,Highway Management,622.40
2204298,Newsquest (North West) Ltd,14/07/2011,48206,Statutory Notices,Development & Regen,Divisional Development,819.80
2205170,Newsquest (North West) Ltd,14/07/2011,48206,Statutory Notices,Development & Regen,Divisional Development,904.40
2198517,Newsquest (North West) Ltd,07/07/2011,48206,Statutory Notices,Development & Regen,Divisional Development,509.60
2204276,Newsquest (North West) Ltd,25/07/2011,48200,Advertising General,Environmental Services,Highway Management,537.80
2200754,Newsquest (North West) Ltd,14/07/2011,48200,Advertising General,Environmental Services,Highway Management,566.00
2204931,REDACTED - PERSONAL DATA,14/07/2011,34402,Clients  Taxi Fares,Environmental Services,Social Needs Transport,"1,820.40"
2210565,Northern Education,28/07/2011,53102,Agency Staff  Other,Children's Services,Sec Sch Imp  Running Costs,"1,340.00"
2210568,Northern Education,28/07/2011,53102,Agency Staff  Other,Children's Services,Sec Sch Imp  Intensive Supp/Intervention,"1,005.00"
2210575,Northern Education,28/07/2011,48509,Other Fees,Children's Services,Secondary Commissioning,"1,675.00"
2212228,NorthernCare#Resource Partners plc,25/07/2011,52000,Vol Assoc Grants  General,Children's Services,Res Serv Agency Placements,"13,259.14"
2205808,NorthernCare#Resource Partners plc,14/07/2011,52000,Vol Assoc Grants  General,Children's Services,Res Serv Agency Placements,"12,986.79"
2205799,NorthernCare#Resource Partners plc,14/07/2011,52000,Vol Assoc Grants  General,Children's Services,Res Serv Agency Placements,"11,237.50"
2205804,NorthernCare#Resource Partners plc,14/07/2011,52000,Vol Assoc Grants  General,Children's Services,Res Serv Agency Placements,"13,259.14"
2198342,Northgate Information Solutions UK Limited,14/07/2011,48509,Other Fees,Finance Department,Housing Benefits,"2,000.00"
2205331,Northwest Minibuses,14/07/2011,34402,Clients  Taxi Fares,Environmental Services,Social Needs Transport,"5,887.95"
2204844,Npower Limited,14/07/2011,21100,Electricity  General,Adult Services,AD  External Recharges,"21,827.23"
2204844,Npower Limited,14/07/2011,21100,Electricity  General,Environmental Services,Mngmnt & Admin Overhead,"24,136.05"
2204844,Npower Limited,14/07/2011,21100,Electricity  General,Housing GRF,Communal Services Capital And Admin.,"6,965.48"
2204844,Npower Limited,14/07/2011,21100,Electricity  General,Property Services,Admin Buildings  General,"19,221.52"
2210222,Npower Limited,21/07/2011,21100,Electricity  General,Adult Services,AD  External Recharges,679.78
2210222,Npower Limited,21/07/2011,21100,Electricity  General,Environmental Services,Mngmnt & Admin Overhead,"13,469.71"
2210222,Npower Limited,21/07/2011,21100,Electricity  General,Housing GRF,Communal Services Capital And Admin.,"4,491.12"
2210222,Npower Limited,21/07/2011,21100,Electricity  General,Property Services,Castle Hill,"6,627.70"
2210222,Npower Limited,21/07/2011,21100,Electricity  General,Property Services,Admin Buildings  General,"31,901.06"
2204493,Npower Limited,14/07/2011,21100,Electricity  General,Adult Services,AD  External Recharges,"13,404.11"
2204493,Npower Limited,14/07/2011,21100,Electricity  General,Environmental Services,Mngmnt & Admin Overhead,"17,544.51"
2204493,Npower Limited,14/07/2011,21100,Electricity  General,Housing Revenue Account,Housing Revenue Account,"12,452.98"
2204493,Npower Limited,14/07/2011,21100,Electricity  General,Property Services,Admin Buildings  General,"5,359.15"
2204493,Npower Limited,14/07/2011,21100,Electricity  General,Central Corporate,Land & Property,"1,217.48"
2203378,Npower Limited,11/07/2011,21100,Electricity  General,Environmental Services,Engineering Projects,"1,441.03"
2203386,Npower Limited,11/07/2011,21100,Electricity  General,Environmental Services,Engineering Projects,"106,643.91"
2203387,Npower Limited,11/07/2011,21100,Electricity  General,Environmental Services,Engineering Projects,"91,329.17"
2212448,Npower Limited,25/07/2011,21100,Electricity  General,Environmental Services,Engineering Projects,"78,673.38"
2212448,Npower Limited,25/07/2011,21100,Electricity  General,Environmental Services,Parking Services  Off Street,514.45
2212061,Nugent Care#Bolton Project,25/07/2011,52200,Contracted Services,Adult Services,LD Purchaser Day Services,"36,397.63"
2204475,OJT Communications Ltd,14/07/2011,Z1051,Work in Progress Additions,Property Services,Property Services Balance Sheet,"1,530.00"
2204476,OJT Communications Ltd,14/07/2011,Z1051,Work in Progress Additions,Property Services,Property Services Balance Sheet,615.00
2209291,Ofsted,21/07/2011,48509,Other Fees,Children's Services,Res Serv Malton Avenue,"1,322.53"
2209295,Ofsted,21/07/2011,48509,Other Fees,Children's Services,Res Serv Mayor Street,"1,442.32"
2205337,Ofsted,14/07/2011,48509,Other Fees,Children's Services,Res Serv 217 Deepdale Rd,"1,322.53"
2205336,Ofsted,14/07/2011,48509,Other Fees,Children's Services,Adolescent Support Unit,"1,202.74"
2209787,Oldhams Ucan Management Committee,21/07/2011,52004,Voluntary Sector Area Working Grants,Chief Executives Department,Voluntary Sector Grants,500.00
2206901,Olympia Travel,18/07/2011,34405,Clients  Swimming Fares,Environmental Services,Social Needs Transport,"8,474.00"
2204936,Olympic Travel#Mr Dad,14/07/2011,34402,Clients  Taxi Fares,Environmental Services,Social Needs Transport,"1,462.00"
2204939,On Time Cars#Nick Hooton,14/07/2011,34402,Clients  Taxi Fares,Environmental Services,Social Needs Transport,"1,537.29"
2212236,Oracle Care Limited,25/07/2011,52000,Vol Assoc Grants  General,Children's Services,Res Serv Agency Placements,"13,285.71"
2210402,Oracle Corporation UK Limited,28/07/2011,45432,Computer Software Installation,Property Services,CPS Oracle E Business suite,"2,465.67"
2205420,Oracle Corporation UK Limited,25/07/2011,45432,Computer Software Installation,Property Services,CPS Oracle E Business suite,"2,334.00"
2201159,Orchard Furniture & Recycling Service,21/07/2011,50002,Other Agency/Contracted Services,Environmental Services,Waste,598.00
2198268,Outdoor Activities Service#Alternative Adventure,11/07/2011,Z1051,Work in Progress Additions,Environmental Services,Environmental Services Balance sheet,550.00
2202352,Outdoor UK Limited,11/07/2011,19100,Training Exps Tuition Fees,Children's Services,Educ Admin Training  School Crses,"1,600.00"
2198201,Outdoor UK Limited,07/07/2011,19100,Training Exps Tuition Fees,Children's Services,Educ Admin Training  School Crses,850.00
2210351,Outdoor UK Limited,28/07/2011,19100,Training Exps Tuition Fees,Children's Services,Educ Admin Training  School Crses,"1,600.00"
2201068,P J Carney & Co Ltd,14/07/2011,52200,Contracted Services,Environmental Services,Greenspace,840.00
2201058,P J Carney & Co Ltd,14/07/2011,52200,Contracted Services,Environmental Services,Greenspace,"2,850.00"
2201055,P J Carney & Co Ltd,14/07/2011,52200,Contracted Services,Environmental Services,Greenspace,840.00
2212028,P J Services (Bolton) Ltd,25/07/2011,Z1051,Work in Progress Additions,Housing GRF,Capital  General Fund,"1,190.00"
2211528,PHS Group PLC,25/07/2011,26001,Hygiene Requisite,Environmental Services,Markets  Rent Account,"2,202.70"
2205698,PHS Group PLC,25/07/2011,43032,Office Stationery,Central Services,Printing Services,911.30
2198129,PHS Group PLC,28/07/2011,20100,Day To Day Maintenance,Adult Services,Prop. Servs. Harrowbys,708.08
2210608,PSU Technology Group Ltd,28/07/2011,45401,Computer Maintenance,Finance Department,Bolton at Home Recharges,"1,419.60"
2208557,PSU Technology Group Ltd,28/07/2011,45400,Computer Purchase,Finance Department,Corporate IT Investment,"2,366.00"
2209283,Parallel Parents,28/07/2011,52000,Vol Assoc Grants  General,Children's Services,Res Serv Agency Placements,"2,957.10"
2209280,Parallel Parents,28/07/2011,52000,Vol Assoc Grants  General,Children's Services,Res Serv Agency Placements,"3,279.30"
2204392,Park House Healthcare Ltd,18/07/2011,44051,Clients Aids & Adaptations,Adult Services,AD ICES,845.00
2202264,Park House Healthcare Ltd,11/07/2011,44051,Clients Aids & Adaptations,Adult Services,AD ICES,845.00
2197220,Parklands House Nursing Home,05/07/2011,54302,Nursing Provision,Adult Services,MH Residential External Provision,"13,280.00"
2197304,Parkside Nursing Home,05/07/2011,54301,Residential Provision,Adult Services,OA  External Provision Residential,"1,824.00"
2197192,Parkview Nursing & Residential Home,05/07/2011,54301,Residential Provision,Adult Services,OA  External Provision Residential,"16,218.84"
2197192,Parkview Nursing & Residential Home,05/07/2011,54302,Nursing Provision,Adult Services,OA  External Provision Residential,"1,470.60"
2197192,Parkview Nursing & Residential Home,05/07/2011,54302,Nursing Provision,Adult Services,PD Purchaser Residential Care,"1,491.72"
2203196,Pasture Ltd T/A Khans Quality Foods (KQF),11/07/2011,41101,Catering ProvisionsFood,Environmental Services,Catering,"1,896.84"
2208411,Pasture Ltd T/A Khans Quality Foods (KQF),18/07/2011,41101,Catering ProvisionsFood,Environmental Services,Catering,"1,659.56"
2203079,Pasture Ltd T/A Khans Quality Foods (KQF),11/07/2011,41101,Catering ProvisionsFood,Environmental Services,Catering,"2,221.21"
2203082,Pasture Ltd T/A Khans Quality Foods (KQF),11/07/2011,41101,Catering ProvisionsFood,Environmental Services,Catering,"1,898.19"
2203085,Pasture Ltd T/A Khans Quality Foods (KQF),11/07/2011,41101,Catering ProvisionsFood,Environmental Services,Catering,"2,294.01"
2197868,REDACTED - PERSONAL DATA,07/07/2011,48502,Legal Fees,Children's Services,Management Team,750.00
2204942,REDACTED - PERSONAL DATA,14/07/2011,34402,Clients  Taxi Fares,Environmental Services,Social Needs Transport,"1,198.80"
2204798,Pervaz Akhtar t/a Akhtar Mini Buses,14/07/2011,34402,Clients  Taxi Fares,Environmental Services,Social Needs Transport,"1,361.70"
2202041,Peter James Packaging Co,11/07/2011,44051,Clients Aids & Adaptations,Adult Services,AD ICES,688.71
2198258,Phoenix Futures#Phoenix House,21/07/2011,54301,Residential Provision,Adult Services,Drugs External Provision,796.01
2198248,Phoenix Futures#Phoenix House,21/07/2011,54301,Residential Provision,Adult Services,Drugs External Provision,"2,243.29"
2198252,Phoenix Futures#Phoenix House,21/07/2011,54301,Residential Provision,Adult Services,Drugs External Provision,658.03
2206894,REDACTED - PERSONAL DATA,18/07/2011,54202,Family Placement (Daycare),Children's Services,Family Support Day Care,"1,528.00"
2206862,Pips Courier Services#Mr D Brown,18/07/2011,48509,Other Fees,Children's Services,Management Team,532.00
2202333,Places for People Homes,11/07/2011,52200,Contracted Services,Adult Services,Supporting People  Capital Financing,"1,351.56"
2202340,Places for People Individual Support,11/07/2011,52200,Contracted Services,Adult Services,Supporting People  Capital Financing,"5,433.96"
2201962,Polish Day Centre for the Elderly,11/07/2011,52000,Vol Assoc Grants  General,Adult Services,OA  Day Care Provision  external,503.68
2206583,Portfolio#Rothwell Company Ltd,18/07/2011,48203,Marketing,Central Services,Marketing Committed Monies,650.00
2206931,Post Office Ltd,18/07/2011,31300,Vehicle Tax,Environmental Services,Transport Support Service,"1,005.00"
2206936,Practical Law Company Ltd,18/07/2011,45431,Computer Software Licences,Legal Trading,Legal Services Trading Account,"7,920.00"
2202217,Pre-School Learning Alliance#Tonge Nursery#Oxford Grove,11/07/2011,54202,Family Placement (Daycare),Children's Services,Family Support Day Care,"1,392.00"
2198110,Premier Care Ltd#Bolton Care Services,07/07/2011,52200,Contracted Services,Adult Services,OA  Home Care Services external provision,"42,919.84"
2204944,Premier Minibuses (NW) Ltd,14/07/2011,34402,Clients  Taxi Fares,Environmental Services,Social Needs Transport,"6,806.70"
2198639,Premier Paper Group Limited,11/07/2011,43032,Office Stationery,Central Services,Printing Services,834.80
2197292,Princess Alexandra Home,05/07/2011,54301,Residential Provision,Adult Services,OA  External Provision Residential,"1,458.80"
2200765,Print Image Network Ltd,14/07/2011,45405,Computer Consumables,Finance Department,Housing Benefits,"1,228.05"
2200700,Print Image Network Ltd,14/07/2011,45405,Computer Consumables,Finance Department,Housing Benefits,"1,224.97"
2202259,Prism Medical UK,11/07/2011,44051,Clients Aids & Adaptations,Adult Services,AD ICES,"1,167.00"
2202267,Prism Medical UK,11/07/2011,44051,Clients Aids & Adaptations,Adult Services,AD ICES,620.50
2200732,ProQuest Information & Learning Limited,21/07/2011,40753,Book Fund Expenditure,Adult Services,Information Services,"5,365.00"
2206741,Quality and Innovation Company Ltd,18/07/2011,48509,Other Fees,Children's Services,School Improvement  P.E.,"1,800.00"
2197272,Queens Park View#Intelligent Care,05/07/2011,54301,Residential Provision,Adult Services,MH Residential External Provision,"8,349.80"
2209839,RNID - Fosse Bank House,21/07/2011,54301,Residential Provision,Adult Services,OA  External Provision Residential,"17,534.11"
2204807,Rafik Patel#Alpha Luxury Travel,14/07/2011,34402,Clients  Taxi Fares,Environmental Services,Social Needs Transport,"2,002.50"
2197193,Randomlight Ltd#Heightside House,05/07/2011,54301,Residential Provision,Adult Services,MH Residential External Provision,"2,270.12"
2197193,Randomlight Ltd#Heightside House,05/07/2011,54302,Nursing Provision,Adult Services,LD Purchaser Residential Care,"2,228.04"
2197193,Randomlight Ltd#Heightside House,05/07/2011,54302,Nursing Provision,Adult Services,MH Residential External Provision,"8,848.52"
2198642,Record RSS Ltd,11/07/2011,40601,General Materials,Environmental Services,Greenspace,542.50
2211280,Red Rose Travel,25/07/2011,44054,Other Clients Services,Children's Services,Music ServMusic Centre,"1,560.70"
2197256,Redbank Care Home#Payee Voyage North,05/07/2011,54301,Residential Provision,Adult Services,LD Purchaser Residential Care,"4,692.20"
2203305,Regional Flooring Co Ltd,11/07/2011,20100,Day To Day Maintenance,Children's Services,Horwich Youth Centre,935.00
2212464,Relate#Greater Manchester North,25/07/2011,47103,Miscellaneous Grants,Chief Executives Department,Voluntary Sector Grants,"3,738.25"
2198214,Relphs Funeral Service,07/07/2011,52300,Client Support Costs,Adult Services,"AD Finance, Income & Assess. Team","1,100.00"
2210520,Remploy Ltd,28/07/2011,52200,Contracted Services,Adult Services,Resources,865.30
2197919,Ricoh UK Limited,07/07/2011,40141,Office Equipment Maintenance,Central Services,Civic & Admin Text & Reprographics,728.28
2197917,Ricoh UK Limited,07/07/2011,40141,Office Equipment Maintenance,Central Services,Civic & Admin Text & Reprographics,696.86
2206991,Rigby Taylor Ltd,18/07/2011,40601,General Materials,Environmental Services,Greenspace,528.00
2198423,Rigby Taylor Ltd,07/07/2011,40601,General Materials,Environmental Services,Greenspace,610.50
2197195,Rivington View Nursing Home,05/07/2011,54301,Residential Provision,Adult Services,OA  External Provision Residential,"17,793.04"
2197195,Rivington View Nursing Home,05/07/2011,54302,Nursing Provision,Adult Services,OA  External Provision Residential,"2,857.84"
2204238,Robert Scott & Sons Ltd,21/07/2011,26000,Cleaning Materials,Environmental Services,Building Cleaning,"1,196.60"
2206511,Robert Scott & Sons Ltd,18/07/2011,26000,Cleaning Materials,Environmental Services,Building Cleaning,655.00
2210347,Robinson Plant Hire,21/07/2011,33202,Plant Hire,Environmental Services,Greenspace,661.78
2205937,Robinson Plant Hire,14/07/2011,33202,Plant Hire,Environmental Services,Greenspace,661.78
2208623,Rock It Collective,18/07/2011,48501,Artistes Fees,Adult Services,Art Projects,"2,500.00"
2197196,Rose Court Nursing & RH Ltd,05/07/2011,54301,Residential Provision,Adult Services,OA  External Provision Residential,"6,174.24"
2197196,Rose Court Nursing & RH Ltd,05/07/2011,54301,Residential Provision,Adult Services,MH Residential External Provision,771.78
2197196,Rose Court Nursing & RH Ltd,05/07/2011,54302,Nursing Provision,Adult Services,OA  External Provision Residential,"7,717.80"
2197196,Rose Court Nursing & RH Ltd,05/07/2011,54302,Nursing Provision,Adult Services,MH Residential External Provision,"1,543.56"
2197221,Rosebridge Court,05/07/2011,54302,Nursing Provision,Adult Services,OA  External Provision Residential,"1,494.08"
2198002,Royal Mail Group Ltd,07/07/2011,45000,Postages Direct Costs,Finance Department,Housing Benefits,669.84
2198002,Royal Mail Group Ltd,07/07/2011,45000,Postages Direct Costs,Finance Department,Council Tax,"1,035.78"
2201255,Royal Mail Group Ltd,11/07/2011,45000,Postages Direct Costs,Finance Department,Housing Benefits,801.64
2201255,Royal Mail Group Ltd,11/07/2011,45000,Postages Direct Costs,Finance Department,Council Tax,"1,243.23"
2210382,Royal Mail Group Ltd,21/07/2011,45000,Postages Direct Costs,Finance Department,Housing Benefits,612.86
2210382,Royal Mail Group Ltd,21/07/2011,45000,Postages Direct Costs,Finance Department,Council Tax,"1,553.41"
2205147,Royal Mail Group Ltd,14/07/2011,45000,Postages Direct Costs,Finance Department,Finance Ap Centre of Excellence,949.48
2198007,Royal Mencap Society#Mencap,05/07/2011,54301,Residential Provision,Adult Services,LD Purchaser Residential Care,"21,052.00"
2198087,Royal Mencap Society#Mencap,05/07/2011,54301,Residential Provision,Adult Services,LD Purchaser Residential Care,"23,360.40"
2198599,Ruttle Plant Ltd,07/07/2011,40610,Direct Materials,Environmental Services,Highway Services,660.00
2198595,Ruttle Plant Ltd,07/07/2011,40610,Direct Materials,Environmental Services,Highway Services,"1,574.00"
2204949,S & D Private Hire,14/07/2011,34402,Clients  Taxi Fares,Environmental Services,Social Needs Transport,"5,680.54"
2204226,SG World,21/07/2011,48203,Marketing,Central Services,Marketing  General,"1,682.00"
2206018,SGA Systems Ltd,21/07/2011,45431,Computer Software Licences,Children's Services,Admin Strategy&Performance,"2,100.00"
2200680,SLC Paragon,21/07/2011,52200,Contracted Services,Adult Services,MH Residential External Provision,"1,159.48"
2202403,SLC Paragon,11/07/2011,52200,Contracted Services,Adult Services,Supporting People  Capital Financing,"3,744.44"
2204956,STB Supercars PH Ltd,14/07/2011,34402,Clients  Taxi Fares,Environmental Services,Social Needs Transport,"5,158.45"
2198552,SY Controls,07/07/2011,20101,Programmed Maint. Work,Central Corporate,Bolton Sports Village,"4,619.36"
2205792,SY Controls,14/07/2011,Z1051,Work in Progress Additions,Property Services,Property Services Balance Sheet,"1,456.60"
2197881,REDACTED - PERSONAL DATA,07/07/2011,53100,Agency Staff  Fulltime,Legal Trading,Legal Services Trading Account,"2,725.00"
2197882,REDACTED - PERSONAL DATA,07/07/2011,53100,Agency Staff  Fulltime,Legal Trading,Legal Services Trading Account,"1,857.50"
2202312,Sanctuary Carr-Gomm#The Sanctuary Group,14/07/2011,52200,Contracted Services,Adult Services,Supporting People  Capital Financing,"10,624.60"
2207807,Sarabec Limited,18/07/2011,44051,Clients Aids & Adaptations,Adult Services,AD Sensory Impairment,"1,231.38"
2205955,Sarabec Limited,14/07/2011,44051,Clients Aids & Adaptations,Adult Services,AD Sensory Impairment,662.60
2203254,Savills (L & P) Ltd,11/07/2011,48509,Other Fees,Housing Revenue Account,Housing Revenue Account,"2,500.00"
2205335,Schools Direct,14/07/2011,34402,Clients  Taxi Fares,Environmental Services,Social Needs Transport,"1,620.00"
2203353,Serco Leisure Operating Ltd#2,11/07/2011,48509,Other Fees,Children's Services,Sport & Active Living � General,"4,312.50"
2203368,Serco Leisure Operating Ltd#2,11/07/2011,52000,Vol Assoc Grants  General,Children's Services,Castle Hill NonStaff,"5,317.92"
2209195,Serco Leisure Operating Ltd#2,25/07/2011,52000,Vol Assoc Grants  General,Development & Regen,The Leisure Trust,"3,818.18"
2203295,Seva Line,11/07/2011,52200,Contracted Services,Adult Services,OA  Home Care Services external provision,"34,087.84"
2204951,REDACTED - PERSONAL DATA,14/07/2011,34402,Clients  Taxi Fares,Environmental Services,Social Needs Transport,684.00
2213882,Shanleys Ltd,28/07/2011,48203,Marketing,Central Services,Marketing  General,"1,300.00"
2213861,Shanleys Ltd,28/07/2011,48203,Marketing,Central Services,Marketing  Development,588.00
2213858,Shanleys Ltd,28/07/2011,48203,Marketing,Central Services,Marketing  General,967.00
2213885,Shanleys Ltd,28/07/2011,48203,Marketing,Central Services,Marketing  General,"4,292.00"
2197198,Shannon Court Nursing Home,05/07/2011,54301,Residential Provision,Adult Services,OA  External Provision Residential,"10,174.00"
2197198,Shannon Court Nursing Home,05/07/2011,54302,Nursing Provision,Adult Services,OA  External Provision Residential,"19,800.33"
2197198,Shannon Court Nursing Home,05/07/2011,54302,Nursing Provision,Adult Services,MH Residential External Provision,"1,514.64"
2212874,Shanti Medi-Care Ltd,28/07/2011,52200,Contracted Services,Adult Services,Drugs Action Team,655.20
2205611,Shared Care#Maple Leaf Care Limited,25/07/2011,52000,Vol Assoc Grants  General,Children's Services,Res Serv Agency Placements,"1,675.00"
2200881,Sharp Asphalt Co Ltd,07/07/2011,Z6008,Expense AP Accrual,Bolton MBC Balance Sheet,Bolton MBC Balance Sheet,"1,430.05"
2197262,Shassab,05/07/2011,54301,Residential Provision,Adult Services,MH Residential External Provision,"1,562.16"
2209418,Shirlpass Ltd,21/07/2011,48205,Promoting Bolton,Environmental Services,Streets & Grounds,500.00
2209477,Shirlpass Ltd,21/07/2011,48205,Promoting Bolton,Environmental Services,Streets & Grounds,"1,550.00"
2206569,Siemens Financial Services Ltd,18/07/2011,40102,Operational Equipment Rental,Environmental Services,Markets  Rent Account,"1,313.58"
2203904,SignHealth,18/07/2011,52000,Vol Assoc Grants  General,Adult Services,AD Sensory Impairment,"1,059.11"
2203906,SignHealth,18/07/2011,52000,Vol Assoc Grants  General,Adult Services,AD Sensory Impairment,958.93
2200705,SignHealth,21/07/2011,52200,Contracted Services,Adult Services,MH Residential External Provision,"1,110.36"
2212455,Skybluesea#Suzanne Harulow,25/07/2011,48509,Other Fees,Children's Services,AiS  Service Level Agreement,754.44
2208566,Smithfield Consulting Limited,28/07/2011,41106,Bar Stock,Adult Services,Civic Catering Town Hall Bar,623.04
2212239,Social Care Services Group,25/07/2011,52000,Vol Assoc Grants  General,Children's Services,Res Serv Agency Placements,"9,521.34"
2198448,Social Centre for the Blind#FACTOR Bolton Society for Blind People,07/07/2011,52000,Vol Assoc Grants  General,Adult Services,AD  Contracts,"1,498.89"
2204946,REDACTED - PERSONAL DATA,14/07/2011,34402,Clients  Taxi Fares,Environmental Services,Social Needs Transport,"1,197.00"
2197232,Southlands Residential Home#Southlands,05/07/2011,54301,Residential Provision,Adult Services,OA  External Provision Residential,"14,015.46"
2201942,Southlands Residential Home#Southlands,11/07/2011,54301,Residential Provision,Adult Services,OA  External Provision Residential,"4,853.94"
2197250,Southlea Residential Care Home,05/07/2011,54301,Residential Provision,Adult Services,MH Residential External Provision,"1,278.04"
2197295,Southview Lodge Residential Care Home,05/07/2011,54301,Residential Provision,Adult Services,OA  External Provision Residential,"1,444.00"
2201067,Specialist Bathing Advisory Service#Specialist Bathing Equipment,11/07/2011,Z1051,Work in Progress Additions,Housing GRF,Capital  General Fund,"6,310.00"
2198132,Spectra Security Ltd,07/07/2011,20100,Day To Day Maintenance,Children's Services,Play/Play Centres,659.00
2204664,Spectra Security Ltd,14/07/2011,25107,Secure Doors,Property Services,Admin Buildings  General,"1,715.25"
2204665,Spectra Security Ltd,14/07/2011,25107,Secure Doors,Property Services,Admin Buildings  General,591.00
2204671,Spectra Security Ltd,14/07/2011,25107,Secure Doors,Property Services,Admin Buildings  General,"1,189.50"
2205080,Spectra Security Ltd,14/07/2011,25107,Secure Doors,Property Services,Admin Buildings  General,"2,296.00"
2212603,Spectra Security Ltd,25/07/2011,25107,Secure Doors,Property Services,Admin Buildings  General,938.00
2212605,Spectra Security Ltd,25/07/2011,25107,Secure Doors,Property Services,Admin Buildings  General,677.00
2212642,Spectra Security Ltd,25/07/2011,25107,Secure Doors,Property Services,Admin Buildings  General,591.00
2198380,Spectra Security Ltd,07/07/2011,25107,Secure Doors,Property Services,Albert Halls Complex,"3,287.00"
2198685,Spectra Security Ltd,07/07/2011,Z1051,Work in Progress Additions,Property Services,Property Services Balance Sheet,"17,908.00"
2205829,Speedy Asset Services Limited,14/07/2011,Z6008,Expense AP Accrual,Bolton MBC Balance Sheet,Bolton MBC Balance Sheet,"1,010.40"
2197266,Spennymoor Care Home Ltd,05/07/2011,54301,Residential Provision,Adult Services,OA  External Provision Residential,"14,782.08"
2207880,Spur Information Solutions Ltd,18/07/2011,45430,Computer Software,Environmental Services,Parking Services  On Street,"8,556.07"
2197199,St Catherines Care Home,05/07/2011,54301,Residential Provision,Adult Services,OA  External Provision Residential,"14,880.32"
2197199,St Catherines Care Home,05/07/2011,54302,Nursing Provision,Adult Services,OA  External Provision Residential,"21,077.56"
2202344,St Vincents Housing Association Ltd,11/07/2011,52200,Contracted Services,Adult Services,Supporting People  Capital Financing,"3,039.96"
2204955,Stans Mini-Bus,14/07/2011,34402,Clients  Taxi Fares,Environmental Services,Social Needs Transport,"2,025.00"
2202258,Stannah Lift Services Ltd,11/07/2011,Z1051,Work in Progress Additions,Housing Revenue Account,Capital  HRA,"5,345.00"
2202252,Stannah Lift Services Ltd,11/07/2011,Z1051,Work in Progress Additions,Housing Revenue Account,Capital  HRA,"6,455.00"
2208442,Stannah Lift Services Ltd,18/07/2011,Z1051,Work in Progress Additions,Housing Revenue Account,Capital  HRA,"4,623.00"
2202248,Stannah Lift Services Ltd,11/07/2011,Z1051,Work in Progress Additions,Housing Revenue Account,Capital  HRA,"5,047.00"
2202241,Stannah Lift Services Ltd,11/07/2011,Z1051,Work in Progress Additions,Housing Revenue Account,Capital  HRA,"4,693.00"
2202234,Stannah Lift Services Ltd,11/07/2011,Z1051,Work in Progress Additions,Housing Revenue Account,Capital  HRA,"8,019.00"
2208447,Stannah Lift Services Ltd,18/07/2011,Z1051,Work in Progress Additions,Housing Revenue Account,Capital  HRA,"5,812.00"
2198600,Stannah Lift Services Ltd,07/07/2011,Z1051,Work in Progress Additions,Housing GRF,Capital  General Fund,"2,597.00"
2205952,Stannah Lift Services Ltd,14/07/2011,Z1051,Work in Progress Additions,Housing GRF,Capital  General Fund,"2,891.00"
2205951,Stannah Lift Services Ltd,14/07/2011,Z1051,Work in Progress Additions,Housing GRF,Capital  General Fund,"3,042.00"
2197201,Starmount Villa Residential Care Home,05/07/2011,54301,Residential Provision,Adult Services,OA  External Provision Residential,"7,588.24"
2209225,Stockport Psychology Services,21/07/2011,48509,Other Fees,Children's Services,Management Team,910.00
2207627,Stockport Psychology Services,18/07/2011,48509,Other Fees,Children's Services,Management Team,624.00
2203526,Stockport Psychology Services,11/07/2011,48509,Other Fees,Children's Services,Management Team,624.00
2201079,StonePave J Fletcher,07/07/2011,Z6008,Expense AP Accrual,Bolton MBC Balance Sheet,Bolton MBC Balance Sheet,"4,200.00"
2197284,Stonedale Lodge#Bupa Care Homes,05/07/2011,54301,Residential Provision,Adult Services,OA  External Provision Residential,"1,368.00"
2202346,Stonham,11/07/2011,52200,Contracted Services,Adult Services,Supporting People  Capital Financing,"41,464.36"
2197234,Strathmore Nursing Home#Whitehill Homes Ltd,05/07/2011,54301,Residential Provision,Adult Services,OA  External Provision Residential,"7,338.40"
2197234,Strathmore Nursing Home#Whitehill Homes Ltd,05/07/2011,54301,Residential Provision,Adult Services,PD Purchaser Residential Care,"1,493.52"
2197234,Strathmore Nursing Home#Whitehill Homes Ltd,05/07/2011,54302,Nursing Provision,Adult Services,OA  External Provision Residential,"3,413.76"
2197233,Strathmore Nursing Home#Whitehill Homes Ltd,05/07/2011,54302,Nursing Provision,Adult Services,OA  External Provision Residential,533.40
2204958,Street Cars#Ajaz Farzand,14/07/2011,34402,Clients  Taxi Fares,Environmental Services,Social Needs Transport,"5,014.90"
2197235,Sunnyside Residential Home,05/07/2011,54301,Residential Provision,Adult Services,OA  External Provision Residential,634.03
2197236,Sunnyside Residential Home,05/07/2011,54301,Residential Provision,Adult Services,OA  External Provision Residential,"31,120.59"
2208573,Supplies Team Limited,28/07/2011,40140,Office Equipment Purchase,Chief Executives Department,PPP Business Support,"1,575.38"
2207780,Supra UK Limited,18/07/2011,44051,Clients Aids & Adaptations,Adult Services,AD Equipment,"4,819.87"
2197202,Sydenhurst,05/07/2011,54301,Residential Provision,Adult Services,OA  External Provision Residential,"2,598.64"
2213020,Sykes Chemist Ltd,28/07/2011,52200,Contracted Services,Adult Services,Drugs Action Team,638.00
2213987,Synergy Creative Design & Marketing Ltd,28/07/2011,48201,Property Advertising,Housing GRF,Homes for You,712.50
2212258,Synergy Creative Design & Marketing Ltd,25/07/2011,48201,Property Advertising,Housing GRF,Homes for You,712.50
2201108,Synergy Creative Design & Marketing Ltd,07/07/2011,48201,Property Advertising,Housing GRF,Homes for You,712.50
2201045,Synergy Creative Design & Marketing Ltd,07/07/2011,48201,Property Advertising,Housing GRF,Homes for You,712.50
2201105,Synergy Creative Design & Marketing Ltd,07/07/2011,48201,Property Advertising,Housing GRF,Homes for You,712.50
2211406,System Group Ltd T/A System Training,25/07/2011,20501,Engineering Work,Environmental Services,Highway Services,510.00
2205230,T Jolly (Services) Ltd,14/07/2011,20100,Day To Day Maintenance,Property Services,Farnworth Area Office,565.75
2208648,T Lowe & Son Limited,18/07/2011,20100,Day To Day Maintenance,Central Corporate,Land & Property,877.38
2204952,T Thomas#Trevor Thomas Plastering Services,18/07/2011,48509,Other Fees,Children's Services,AiS  Service Level Agreement,800.00
2205100,TL Electrical Services 2002 Ltd,14/07/2011,20100,Day To Day Maintenance,Environmental Services,Markets  Rent Account,"1,890.00"
2204960,REDACTED - PERSONAL DATA,14/07/2011,34402,Clients  Taxi Fares,Environmental Services,Social Needs Transport,829.40
2200832,Talis Information Limited,11/07/2011,45431,Computer Software Licences,Adult Services,Information Systems,"2,320.00"
2208675,Tecalemit Garage Equipment Co Ltd,28/07/2011,40101,Operational Equipment Maint,Environmental Services,Transport Support Service,557.00
2198238,Telecars Bolton,07/07/2011,34402,Clients  Taxi Fares,Environmental Services,Social Needs Transport,"2,079.00"
2198240,Telecars Bolton,07/07/2011,34402,Clients  Taxi Fares,Environmental Services,Social Needs Transport,"1,723.50"
2206903,Telecars Bolton,18/07/2011,34402,Clients  Taxi Fares,Environmental Services,Social Needs Transport,"1,188.00"
2212437,Telecars Bolton,25/07/2011,34402,Clients  Taxi Fares,Environmental Services,Social Needs Transport,922.50
2202350,Telecars Bolton,11/07/2011,34402,Clients  Taxi Fares,Adult Services,OA  Darley Court Intermediate Care,"1,168.00"
2202350,Telecars Bolton,11/07/2011,34402,Clients  Taxi Fares,Children's Services,Contact & Direct Work,"2,537.60"
2197190,The Bakewells,05/07/2011,54301,Residential Provision,Adult Services,OA  External Provision Residential,"15,263.86"
2202289,The Bond Board Ltd,11/07/2011,52200,Contracted Services,Adult Services,Supporting People  Capital Financing,"7,714.56"
2202005,The Book Centre,11/07/2011,40753,Book Fund Expenditure,Adult Services,Libraries  Resources,816.41
2214628,The Box TV (Bolton),28/07/2011,48202,General Publicity,Adult Services,Community Safety Ext Funded Schemes  Projects,540.00
2197214,The Brandles,05/07/2011,54301,Residential Provision,Adult Services,MH Residential External Provision,"3,015.52"
2197962,The Bungalow Residential Home,05/07/2011,54301,Residential Provision,Adult Services,OA  External Provision Residential,"16,428.72"
2197962,The Bungalow Residential Home,05/07/2011,54301,Residential Provision,Adult Services,PD Purchaser Residential Care,"1,493.52"
2197962,The Bungalow Residential Home,05/07/2011,54301,Residential Provision,Adult Services,LD Purchaser Residential Care,"1,493.52"
2197276,The Chimes,05/07/2011,54301,Residential Provision,Adult Services,PD Purchaser Residential Care,"1,740.00"
2201939,The Clough Residential Home,11/07/2011,54301,Residential Provision,Adult Services,OA  External Provision Residential,"4,853.94"
2197249,The Clough Residential Home,05/07/2011,54301,Residential Provision,Adult Services,OA  External Provision Residential,"25,410.96"
2200688,The Columbaria Company,14/07/2011,40601,General Materials,Environmental Services,Bereavement Services,"1,015.40"
2204248,The Columbaria Company,21/07/2011,40601,General Materials,Environmental Services,Bereavement Services,"1,679.20"
2211206,The Columbaria Company,25/07/2011,40601,General Materials,Environmental Services,Bereavement Services,575.20
2197244,The David Lewis Centre,05/07/2011,54301,Residential Provision,Adult Services,LD Purchaser Residential Care,"12,746.64"
2197283,The Gables Care Home,05/07/2011,54301,Residential Provision,Adult Services,OA  External Provision Residential,"1,547.56"
2198195,The Leaving Care Team,07/07/2011,52300,Client Support Costs,Children's Services,Child Prot Leaving Care Team,"1,368.35"
2205600,The Leaving Care Team,14/07/2011,52300,Client Support Costs,Children's Services,Child Prot Leaving Care Team,"1,839.65"
2198117,The Local Care Company (Bolton) Ltd,07/07/2011,52200,Contracted Services,Adult Services,OA  Home Care Services external provision,"51,323.08"
2209324,The Music Cellar,25/07/2011,40150,Office Furniture Purchase,Children's Services,Music ServInstru & Vocal Teach,"1,760.00"
2205744,The Music Cellar,28/07/2011,40610,Direct Materials,Children's Services,Music ServMusic Service general,"4,169.00"
2210413,The National Fostering Agency,28/07/2011,52000,Vol Assoc Grants  General,Children's Services,Res Serv Agency Placements,"3,342.00"
2210415,The National Fostering Agency,28/07/2011,52000,Vol Assoc Grants  General,Children's Services,Res Serv Agency Placements,"2,892.00"
2197253,The Oaks,05/07/2011,54301,Residential Provision,Adult Services,OA  External Provision Residential,"1,580.68"
2212579,The Octagon,25/07/2011,47103,Miscellaneous Grants,Chief Executives Department,Voluntary Sector Grants,"36,345.00"
2197246,The Old Vicarage,05/07/2011,54301,Residential Provision,Adult Services,OA  External Provision Residential,"4,888.16"
2209286,The Railway Home for Children,28/07/2011,52000,Vol Assoc Grants  General,Children's Services,Disability Serv External Provision,"4,800.00"
2206735,The Royal Town Planning Institute#RTPI,18/07/2011,46004,Staff Training Courses,Development & Regen,Planning Strategy,816.00
2197213,The Spinal Unit Action Group,05/07/2011,54301,Residential Provision,Adult Services,PD Purchaser Residential Care,"2,192.40"
2201795,The Stroke Association,11/07/2011,52000,Vol Assoc Grants  General,Adult Services,OA  Day Care Provision  external,"4,377.00"
2198092,The Together Trust#was BGWS,05/07/2011,54301,Residential Provision,Adult Services,LD Purchaser Residential Care,"14,345.76"
2205642,The Together Trust#was BGWS,14/07/2011,52200,Contracted Services,Adult Services,LD Purchaser Supported Housing,"12,852.33"
2205641,The Together Trust#was BGWS,14/07/2011,52200,Contracted Services,Adult Services,LD Purchaser Supported Housing,"17,136.44"
2205640,The Together Trust#was BGWS,14/07/2011,52200,Contracted Services,Adult Services,LD Purchaser Supported Housing,"17,136.44"
2205637,The Together Trust#was BGWS,14/07/2011,52200,Contracted Services,Adult Services,LD Purchaser Supported Housing,"7,643.75"
2205636,The Together Trust#was BGWS,14/07/2011,52200,Contracted Services,Adult Services,LD Purchaser Supported Housing,"10,155.71"
2205635,The Together Trust#was BGWS,14/07/2011,52200,Contracted Services,Adult Services,LD Purchaser Supported Housing,"10,248.17"
2205632,The Together Trust#was BGWS,14/07/2011,52200,Contracted Services,Adult Services,LD Purchaser Supported Housing,"6,730.96"
2205633,The Together Trust#was BGWS,14/07/2011,52200,Contracted Services,Adult Services,LD Purchaser Supported Housing,"6,730.96"
2212230,The Together Trust#was BGWS,25/07/2011,52000,Vol Assoc Grants  General,Children's Services,Disability Serv External Provision,"15,370.50"
2205626,The Together Trust#was BGWS,14/07/2011,52200,Contracted Services,Adult Services,LD Purchaser Supported Housing,"7,828.80"
2205629,The Together Trust#was BGWS,14/07/2011,52200,Contracted Services,Adult Services,LD Purchaser Supported Housing,"7,828.80"
2205630,The Together Trust#was BGWS,14/07/2011,52200,Contracted Services,Adult Services,LD Purchaser Supported Housing,"5,048.22"
2212235,The Together Trust#was BGWS,25/07/2011,52000,Vol Assoc Grants  General,Children's Services,Res Serv Agency Placements,"9,128.40"
2205624,The Together Trust#was BGWS,14/07/2011,52200,Contracted Services,Adult Services,LD Purchaser Supported Housing,"5,871.60"
2204303,Thistlethwaite Tyres & Exhausts#Factor Micheldever Tyre Svs Ltd,14/07/2011,31303,Tyres,Environmental Services,Transport Support Service,"4,351.12"
2197255,Thorley House,05/07/2011,54301,Residential Provision,Adult Services,OA  External Provision Residential,"1,519.00"
2197215,Thorncliffe Nursing Home,05/07/2011,54301,Residential Provision,Adult Services,OA  External Provision Residential,"1,576.00"
2202280,Together Travel Ltd#Maypole,11/07/2011,34405,Clients  Swimming Fares,Environmental Services,Social Needs Transport,715.50
2198244,Together Travel Ltd#Maypole,07/07/2011,34405,Clients  Swimming Fares,Environmental Services,Social Needs Transport,715.50
2198243,Together Travel Ltd#Maypole,07/07/2011,34405,Clients  Swimming Fares,Environmental Services,Social Needs Transport,715.50
2205953,Tom Gallagher Ltd,14/07/2011,Z1051,Work in Progress Additions,Housing GRF,Capital  General Fund,"4,400.58"
2198542,Tony Yorke Associates#Tony Yorke Limited,11/07/2011,Z1051,Work in Progress Additions,Environmental Services,Environmental Services Balance sheet,850.00
2213145,Total Fire Services Ltd,28/07/2011,52200,Contracted Services,Property Services,Operational Facilities Management,"1,220.00"
2204861,Total Fire Services Ltd,14/07/2011,52200,Contracted Services,Property Services,Operational Facilities Management,"1,080.00"
2202137,Transport For Greater Manchester,14/07/2011,40102,Operational Equipment Rental,Development & Regen,Metro Shuttle Bus,"7,962.00"
2200938,Treescape North West Ltd,18/07/2011,52200,Contracted Services,Environmental Services,Greenspace,"4,500.00"
2202265,Turbex Ltd,14/07/2011,44051,Clients Aids & Adaptations,Adult Services,AD ICES,810.53
2206119,Unique Integrated Systems,18/07/2011,25106,C.C.T.V.,Environmental Services,Security Services,"2,240.00"
2198207,United Utilities Water PLC#1,07/07/2011,22201,Water Charges  Unmetered,Children's Services,Balance and Service Redirection,"1,598.88"
2198206,United Utilities Water PLC#1,07/07/2011,22200,Water Charges  Metered,Children's Services,Balance and Service Redirection,510.55
2212414,Urban Outreach (Bolton),25/07/2011,52200,Contracted Services,Children's Services,Admin Commissioning,"12,500.00"
2202348,Urban Outreach (Bolton),11/07/2011,52200,Contracted Services,Adult Services,Supporting People  Capital Financing,"4,266.08"
2209300,Urban Solutions Northwest Ltd,21/07/2011,52200,Contracted Services,Children's Services,Admin Commissioning,"7,500.00"
2204825,Urban Vision Partnership Ltd#GMGU,14/07/2011,Z1051,Work in Progress Additions,Central Services,Central Services Balance Sheet,"7,821.00"
2197945,Vaisala Ltd,07/07/2011,20501,Engineering Work,Environmental Services,Highway Services,"7,881.00"
2197203,Vale House#Vale Residential Ltd,05/07/2011,54301,Residential Provision,Adult Services,OA  External Provision Residential,"15,782.72"
2205164,REDACTED - PERSONAL DATA,25/07/2011,22003,Ground Rent,Adult Services,AD Sensory Impairment,"1,833.33"
2205093,Valuation Office Agency,14/07/2011,48509,Other Fees,Central Corporate,Land & Property,"1,250.00"
2210355,REDACTED - PERSONAL DATA,21/07/2011,48509,Other Fees,Children's Services,AiS  Service Level Agreement,500.00
2197977,Vitalise Ellerslie Court,05/07/2011,54301,Residential Provision,Adult Services,PD Purchaser Residential Care,"2,722.32"
2208698,W & S C Jobson,18/07/2011,52200,Contracted Services,Environmental Services,Transport Support Service,646.05
2208701,W & S C Jobson,18/07/2011,52200,Contracted Services,Environmental Services,Transport Support Service,776.75
2204997,WV Howe Ltd,25/07/2011,40100,Operational Equipment Purchase,Environmental Services,Catering,593.14
2205007,WV Howe Ltd,25/07/2011,40100,Operational Equipment Purchase,Environmental Services,Catering,"1,408.82"
2205045,WV Howe Ltd,25/07/2011,40100,Operational Equipment Purchase,Environmental Services,Catering,537.00
2198587,Wainwright Tree Stump Removal Ltd,11/07/2011,52200,Contracted Services,Environmental Services,Greenspace,"1,100.00"
2212974,Waltons the Caterers,28/07/2011,41202,Refreshments for Meetings,Children's Services,Technical Innovation Centre,684.25
2197271,Westfield House Care Home,05/07/2011,54301,Residential Provision,Adult Services,MH Residential External Provision,"4,292.72"
2204962,Westhoughton Coach Hire,14/07/2011,34402,Clients  Taxi Fares,Environmental Services,Social Needs Transport,"1,415.25"
2201975,Westhoughton Visiting Service,11/07/2011,52000,Vol Assoc Grants  General,Adult Services,OA  Day Care Provision  external,"6,839.60"
2197293,Westwood Lodge,05/07/2011,54302,Nursing Provision,Adult Services,OA  External Provision Residential,"1,494.08"
2208569,William Hamilton,25/07/2011,48502,Legal Fees,Children's Services,Contact & Direct Work,"2,000.00"
2204963,Willows Minibus,14/07/2011,34402,Clients  Taxi Fares,Environmental Services,Social Needs Transport,"3,007.80"
2197260,Windermere House,05/07/2011,54302,Nursing Provision,Adult Services,MH Residential External Provision,"2,214.00"
2197205,Wingates Residential Home,05/07/2011,54301,Residential Provision,Adult Services,OA  External Provision Residential,"40,118.36"
2197216,Withins Residential Home,05/07/2011,54301,Residential Provision,Adult Services,OA  External Provision Residential,"68,158.80"
2197299,Withy Grove House,05/07/2011,54302,Nursing Provision,Adult Services,OA  External Provision Residential,"1,866.00"
2209347,Woodlands Care Group Ltd,28/07/2011,54301,Residential Provision,Adult Services,OA  External Provision Residential,"4,848.09"
2198094,Woodlands House Residential Home Ltd,05/07/2011,54301,Residential Provision,Adult Services,OA  External Provision Residential,"28,013.20"
2203497,World Endurance UK Ltd,11/07/2011,48204,Promoting Events,Development & Regen,D&R Departmental Account,"31,250.00"
2206960,Xerox Business Services,18/07/2011,43030,Photocopying Lease/Maintenance,Chief Executives Department,MFD,"31,455.50"
2204964,Y & S Private Hire,14/07/2011,34402,Clients  Taxi Fares,Environmental Services,Social Needs Transport,"1,703.00"
2211306,YMCA,25/07/2011,52200,Contracted Services,Children's Services,Admin Commissioning,"18,000.00"
2206578,Yell Ltd#1,18/07/2011,48200,Advertising General,Environmental Services,Markets  Rent Account,734.00
2203934,Yorkshire Purchasing Organisation,27/07/2011,41101,Catering ProvisionsFood,Adult Services,Civic Catering Dido,782.55
2209358,Zodion Limited#Was Cableform Ltd,28/07/2011,Z1051,Work in Progress Additions,Highways,Stores,"2,075.00"
2202046,Zodion Limited#Was Cableform Ltd,25/07/2011,Z1051,Work in Progress Additions,Highways,Stores,"3,080.00"
2202057,Zodion Limited#Was Cableform Ltd,25/07/2011,Z1051,Work in Progress Additions,Highways,Stores,"1,416.00"
2201053,Zodion Limited#Was Cableform Ltd,14/07/2011,Z1051,Work in Progress Additions,Highways,Stores,532.04
2201265,Zodion Limited#Was Cableform Ltd,11/07/2011,Z1051,Work in Progress Additions,Highways,Stores,"16,600.00"
2201350,Zodion Limited#Was Cableform Ltd,14/07/2011,Z1051,Work in Progress Additions,Highways,Stores,"1,848.00"
2214429,iCount Training,28/07/2011,19100,Training Exps Tuition Fees,Finance Department,Financial Management,"1,323.33"
